Body Name,Body,Service Division Label,Service Division Code,Organisational Unit,Expenditure Category,Expenditure Code,CIPFA detailed expediture type,CIPFA detailed expediture code,Narrative,Date,Transaction number,Net Amount,Capital and Revenue,Supplier Name,Supplier ID
Chorley Borough Council,http://statistics.data.gov.uk/id/local-authority/30UE,Unapportionable Central OHeads,1009,Policy & Performance,Exhibitions & Special Events,40158,Miscellaneous Expenses,5034,Radio advert to promote Chorley Live event,09/10/2013,91355,811.92,Revenue,107 The Bee,51152
Chorley Borough Council,http://statistics.data.gov.uk/id/local-authority/30UE,Economic Development,1096,Economic Development,Grants To Other Organisations,40127,Grants and Subscriptions,5031,Starting in Business Grant - Capital Expenditure,09/10/2013,91291,750.00,Revenue,A Mason t/as Mason`s Market Caf�,61769
Chorley Borough Council,http://statistics.data.gov.uk/id/local-authority/30UE,Service Management & Support,1009,Streetscene & Leisure Contracts,Supplies-Grounds Maintenance,40025,"Equipment, Furniture & Materia",5023,Create a disabled parking bay,30/10/2013,91755,"1,250.00",Revenue,A Middleton,61789
Chorley Borough Council,http://statistics.data.gov.uk/id/local-authority/30UE,Parking Services,1066,Streetscene & Leisure Contracts,Signs:Provision & Maintenance,20065,Grounds Maintenance Costs,5013,"Car park line marking for Fleet Street long and short stay as per quote EN26104/1",16/10/2013,91482,"2,475.00",Revenue,A1 Streamline Road Markings LTD,21544
Chorley Borough Council,http://statistics.data.gov.uk/id/local-authority/30UE,Democratic Represent and  Mgnt,1007,Streetscene & Leisure Contracts,External Contractor - Trust or Charity,50008,Private Contractors,5042,Oct-13,09/10/2013,91305,"33,416.25",Revenue,Active Nation UK Ltd,17144
Chorley Borough Council,http://statistics.data.gov.uk/id/local-authority/30UE,Service Management & Support,1009,Streetscene & Leisure Contracts,Vehicle Maintenance,30045,Direct Transport Costs,5016,Supply side skids for Schmidt 250,30/10/2013,91347,378.53,Revenue,Aebi Schmidt UK Ltd,17287
Chorley Borough Council,http://statistics.data.gov.uk/id/local-authority/30UE,Service Management & Support,1009,Streetscene & Leisure Contracts,Vehicle Maintenance,30045,Direct Transport Costs,5016,Supply wing mirror as per your quotation No 20075775/1909/2013,30/10/2013,91347,96.72,Revenue,Aebi Schmidt UK Ltd,17287
Chorley Borough Council,http://statistics.data.gov.uk/id/local-authority/30UE,Service Management & Support,1009,Streetscene & Leisure Contracts,Vehicle Maintenance,30045,Direct Transport Costs,5016,Freight,30/10/2013,91347,18.75,Revenue,Aebi Schmidt UK Ltd,17287
Chorley Borough Council,http://statistics.data.gov.uk/id/local-authority/30UE,Unapportionable Central OHeads,1009,"Customer, ICT & Transactional",Bank Charges,40151,Miscellaneous Expenses,5034,CHBC,11/10/2013,91232,"1,907.98",Revenue,Allpay Net Ltd,17242
Chorley Borough Council,http://statistics.data.gov.uk/id/local-authority/30UE,Unapportionable Central OHeads,1009,"Customer, ICT & Transactional",Bank Charges,40151,Miscellaneous Expenses,5034,CHBC,11/10/2013,91232,43.01,Revenue,Allpay Net Ltd,17242
Chorley Borough Council,http://statistics.data.gov.uk/id/local-authority/30UE,Unapportionable Central OHeads,1009,Shared Service Arrangement,Car Leasing Payment,14100,Direct Employee Expenses,5001,Vehicle Leasing,11/10/2013,91380,351.30,Revenue,Alphabet (Uk) Fleet Management Ltd,16651
Chorley Borough Council,http://statistics.data.gov.uk/id/local-authority/30UE,Unapportionable Central OHeads,1009,Shared Service Arrangement,Car Leasing Payment,14100,Direct Employee Expenses,5001,Vehicle Leasing,11/10/2013,91381,"2,979.34",Revenue,Alphabet (Uk) Fleet Management Ltd,16651
Chorley Borough Council,http://statistics.data.gov.uk/id/local-authority/30UE,Unapportionable Central OHeads,1009,Shared Service Arrangement,Car Leasing Payment,14100,Direct Employee Expenses,5001,Vehicle Leasing,11/10/2013,91381,"2,334.00",Revenue,Alphabet (Uk) Fleet Management Ltd,16651
Chorley Borough Council,http://statistics.data.gov.uk/id/local-authority/30UE,Economic Development,1096,Economic Development,Grants To Other Organisations,40127,Grants and Subscriptions,5031,Starting in business grant - Capital Expenditure,09/10/2013,91289,750.00,Revenue,NAME REDACTED,61774
Chorley Borough Council,http://statistics.data.gov.uk/id/local-authority/30UE,Unapportionable Central OHeads,1009,Governance,Cleaning Materials,40019,"Equipment, Furniture & Materia",5023,Cleaning products for civic buildings.,09/10/2013,91369,"1,184.62",Revenue,Amtoll Ltd,21738
Chorley Borough Council,http://statistics.data.gov.uk/id/local-authority/30UE,Economic Development,1096,Economic Development,Cleaning Materials,40019,"Equipment, Furniture & Materia",5023,To supply items as per order to be emailed to you,11/10/2013,91370,400.54,Revenue,Amtoll Ltd,21738
Chorley Borough Council,http://statistics.data.gov.uk/id/local-authority/30UE,Economic Development,1096,Economic Development,Grants To Other Organisations,40127,Grants and Subscriptions,5031,Starting in Business Grant - Cap Ex,09/10/2013,91296,750.00,Revenue,Animate Products Ltd,61770
Chorley Borough Council,http://statistics.data.gov.uk/id/local-authority/30UE,Central Support Services,1009,"Customer, ICT & Transactional",Consultants` Fees,40077,Services,5027,Professional services SOW entitled Infrastructure Upgrades include on boarding for maintenance contract of 4 days,11/10/2013,91345,"12,500.00",Revenue,ANS Group,22502
Chorley Borough Council,http://statistics.data.gov.uk/id/local-authority/30UE,Service Management & Support,1009,Streetscene & Leisure Contracts,Protective Clothing,40040,"Clothing, Uniforms and Laundry",5025,Hi viz jackets,25/10/2013,91179,378.62,Revenue,Arco Limited,17458
Chorley Borough Council,http://statistics.data.gov.uk/id/local-authority/30UE,Service Management & Support,1009,Streetscene & Leisure Contracts,Protective Clothing,40040,"Clothing, Uniforms and Laundry",5025,Supply Regatta TRF532 Thor 111 Fleece colour classic red c/w Chorley Council Logo on front 10 x Medium 10 x Large,25/10/2013,91724,372.00,Revenue,Arco Limited,17458
Chorley Borough Council,http://statistics.data.gov.uk/id/local-authority/30UE,Street Cleansing,1049,Streetscene & Leisure Contracts,Provn Of Street Furniture,20057,Grounds Maintenance Costs,5013,Manufacture and supply picnic tables fully galvanised and painted in RAL No 6002as per specification and quote,16/10/2013,91538,"5,000.00",Revenue,Ark Welding Ltd,18154
Chorley Borough Council,http://statistics.data.gov.uk/id/local-authority/30UE,Development Control,1091,Planning,Refunds,40220,Miscellaneous Expenses,5034,Refund of Planning Application Fee on Application: 13/00808/FUL,11/10/2013,91285,"1,925.00",Revenue,Arley Homes North West Ltd,61779
Chorley Borough Council,http://statistics.data.gov.uk/id/local-authority/30UE,Development Control,1091,Shared Service Arrangement,Car Leasing Payment,14100,Direct Employee Expenses,5001,Vehicle Leasing,23/10/2013,91606,"2,460.00",Revenue,Arnold Clark Finance Ltd,20685
Chorley Borough Council,http://statistics.data.gov.uk/id/local-authority/30UE,Economic Development,1096,Economic Development,Grants To Other Organisations,40127,Grants and Subscriptions,5031,Starting in business grant,30/10/2013,91708,750.00,Revenue,A-Star Sports,62177
Chorley Borough Council,http://statistics.data.gov.uk/id/local-authority/30UE,Corporate Management,1008,Health Environment & Neighbourhoods,Taxi Testing & Vehicle Safety Report,40234,Services,5027,MOT,09/10/2013,91382,603.35,Revenue,Autocentre LTD,21651
Chorley Borough Council,http://statistics.data.gov.uk/id/local-authority/30UE,Corporate Management,1008,Health Environment & Neighbourhoods,Taxi Testing & Vehicle Safety Report,40234,Services,5027,MOT,09/10/2013,91382,91.63,Revenue,Autocentre LTD,21651
Chorley Borough Council,http://statistics.data.gov.uk/id/local-authority/30UE,Control Accounts,Control,Shared Service Arrangement,General Balances,100,Balance Sheet,Balance,Insurance claim,30/10/2013,91690,663.06,Revenue,Autoglass Ltd,19805
Chorley Borough Council,http://statistics.data.gov.uk/id/local-authority/30UE,Service Management & Support,1009,Streetscene & Leisure Contracts,Hire Of Transport,30028,Contrct Hire & Operating Lease,5018,Hire of John Deere,16/10/2013,90971,"1,600.00",Revenue,Balmers Garden Machinery,17075
Chorley Borough Council,http://statistics.data.gov.uk/id/local-authority/30UE,Service Management & Support,1009,Streetscene & Leisure Contracts,Hire Of Transport,30028,Contrct Hire & Operating Lease,5018,Hire of John Deere 1445 ride on rotary mowers for 16 week period,30/10/2013,91280,"1,600.00",Revenue,Balmers Garden Machinery,17075
Chorley Borough Council,http://statistics.data.gov.uk/id/local-authority/30UE,Service Management & Support,1009,Streetscene & Leisure Contracts,Hire Of Transport,30028,Contrct Hire & Operating Lease,5018,Hire of Hayter LT324 triple mower reg SN06KYE  for 20 week period at price quoted,30/10/2013,91471,900.00,Revenue,Balmers Garden Machinery,17075
Chorley Borough Council,http://statistics.data.gov.uk/id/local-authority/30UE,Local Tax Collection,1010,Shared Service Arrangement,Legal Fees,40171,Miscellaneous Expenses,5034,HM Courts - Services - 52 BR liabilty orders,30/10/2013,91559,156.00,Revenue,Barclaycard Commercial,59848
Chorley Borough Council,http://statistics.data.gov.uk/id/local-authority/30UE,Local Tax Collection,1010,Shared Service Arrangement,Legal Fees,40171,Miscellaneous Expenses,5034,HM Courts - Services - 59 CT liability orders,30/10/2013,91559,177.00,Revenue,Barclaycard Commercial,59848
Chorley Borough Council,http://statistics.data.gov.uk/id/local-authority/30UE,Unapportionable Central OHeads,1009,Shared Service Arrangement,Publicity - Advertising,40157,Miscellaneous Expenses,5034,Facebook.com - Facebook ads,30/10/2013,91559,23.00,Revenue,Barclaycard Commercial,59848
Chorley Borough Council,http://statistics.data.gov.uk/id/local-authority/30UE,Unapportionable Central OHeads,1009,Shared Service Arrangement,Publicity - Advertising,40157,Miscellaneous Expenses,5034,Facebook.com - Facebook ads,30/10/2013,91559,16.94,Revenue,Barclaycard Commercial,59848
Chorley Borough Council,http://statistics.data.gov.uk/id/local-authority/30UE,Unapportionable Central OHeads,1009,Shared Service Arrangement,Publicity - Advertising,40157,Miscellaneous Expenses,5034,Facebook.com - Facebook ads,30/10/2013,91559,36.68,Revenue,Barclaycard Commercial,59848
Chorley Borough Council,http://statistics.data.gov.uk/id/local-authority/30UE,Unapportionable Central OHeads,1009,Shared Service Arrangement,Publicity - Advertising,40157,Miscellaneous Expenses,5034,Facebook.com - Facebook ads,30/10/2013,91559,22.45,Revenue,Barclaycard Commercial,59848
Chorley Borough Council,http://statistics.data.gov.uk/id/local-authority/30UE,Unapportionable Central OHeads,1009,Shared Service Arrangement,Publicity - Advertising,40157,Miscellaneous Expenses,5034,Facebook.com - Facebook ads,30/10/2013,91559,27.24,Revenue,Barclaycard Commercial,59848
Chorley Borough Council,http://statistics.data.gov.uk/id/local-authority/30UE,Unapportionable Central OHeads,1009,Shared Service Arrangement,Publicity - Advertising,40157,Miscellaneous Expenses,5034,Facebook.com - Facebook ads,30/10/2013,91559,26.77,Revenue,Barclaycard Commercial,59848
Chorley Borough Council,http://statistics.data.gov.uk/id/local-authority/30UE,Democratic Represent and  Mgnt,1007,Shared Service Arrangement,Subsistence - Members,40119,Expenses,5030,Travelodge Website,30/10/2013,91559,83.88,Revenue,Barclaycard Commercial,59848
Chorley Borough Council,http://statistics.data.gov.uk/id/local-authority/30UE,Democratic Represent and  Mgnt,1007,Shared Service Arrangement,Members Rail Fares,30033,Public Transport,5019,Trainline.com - Rail Tickets for Conference ,30/10/2013,91559,83.28,Revenue,Barclaycard Commercial,59848
Chorley Borough Council,http://statistics.data.gov.uk/id/local-authority/30UE,Democratic Represent and  Mgnt,1007,Shared Service Arrangement,Members Rail Fares,30033,Public Transport,5019,Trainline.com - Rail Tickets for Conference ,30/10/2013,91559,76.30,Revenue,Barclaycard Commercial,59848
Chorley Borough Council,http://statistics.data.gov.uk/id/local-authority/30UE,Democratic Represent and  Mgnt,1007,Shared Service Arrangement,Conferences - Members,40121,Expenses,5030,Paypal *Letsdobusiness - Lader attended Lets Do Lunch Business Event,30/10/2013,91559,12.50,Revenue,Barclaycard Commercial,59848
Chorley Borough Council,http://statistics.data.gov.uk/id/local-authority/30UE,Local Tax Collection,1010,Shared Service Arrangement,Legal Fees,40171,Miscellaneous Expenses,5034,HM Courts - Services - 30 liability orders 30 liability orders,30/10/2013,91560,90.00,Revenue,Barclaycard Commercial,59848
Chorley Borough Council,http://statistics.data.gov.uk/id/local-authority/30UE,Local Tax Collection,1010,Shared Service Arrangement,Bed and Breakfast Accommodation,40232,Miscellaneous Expenses,5034,Wrightington Hotel Wigan - Hotel Accom re evacuation Hotel Accom re evacuation ,30/10/2013,91560,55.00,Revenue,Barclaycard Commercial,59848
Chorley Borough Council,http://statistics.data.gov.uk/id/local-authority/30UE,Local Tax Collection,1010,Shared Service Arrangement,Bed and Breakfast Accommodation,40232,Miscellaneous Expenses,5034,Wrightington Hotel Wigan - Hotel Accom re evacuation Hotel Accom re evacuation ,30/10/2013,91560,55.00,Revenue,Barclaycard Commercial,59848
Chorley Borough Council,http://statistics.data.gov.uk/id/local-authority/30UE,Local Tax Collection,1010,Shared Service Arrangement,Bed and Breakfast Accommodation,40232,Miscellaneous Expenses,5034,Wrightington Hotel Wigan - Hotel Accom re evacuation Hotel Accom re evacuation ,30/10/2013,91560,55.00,Revenue,Barclaycard Commercial,59848
Chorley Borough Council,http://statistics.data.gov.uk/id/local-authority/30UE,Local Tax Collection,1010,Shared Service Arrangement,Bed and Breakfast Accommodation,40232,Miscellaneous Expenses,5034,Wrightington Hotel Wigan - Hotel Accom re evacuation Hotel Accom re evacuation ,30/10/2013,91560,55.00,Revenue,Barclaycard Commercial,59848
Chorley Borough Council,http://statistics.data.gov.uk/id/local-authority/30UE,Local Tax Collection,1010,Shared Service Arrangement,Bed and Breakfast Accommodation,40232,Miscellaneous Expenses,5034,Wrightington Hotel Wigan - Hotel Accom re evacuation Hotel Accom re evacuation ,30/10/2013,91560,55.00,Revenue,Barclaycard Commercial,59848
Chorley Borough Council,http://statistics.data.gov.uk/id/local-authority/30UE,Local Tax Collection,1010,Shared Service Arrangement,Bed and Breakfast Accommodation,40232,Miscellaneous Expenses,5034,Wrightington Hotel Wigan - Hotel Accom re evacuation Hotel Accom re evacuation ,30/10/2013,91560,70.00,Revenue,Barclaycard Commercial,59848
Chorley Borough Council,http://statistics.data.gov.uk/id/local-authority/30UE,Local Tax Collection,1010,Shared Service Arrangement,Bed and Breakfast Accommodation,40232,Miscellaneous Expenses,5034,Wrightington Hotel Wigan - Hotel Accom re evacuation Hotel Accom re evacuation ,30/10/2013,91560,70.00,Revenue,Barclaycard Commercial,59848
Chorley Borough Council,http://statistics.data.gov.uk/id/local-authority/30UE,Local Tax Collection,1010,Shared Service Arrangement,Bed and Breakfast Accommodation,40232,Miscellaneous Expenses,5034,Wrightington Hotel Wigan - Hotel Accom re evacuation Hotel Accom re evacuation ,30/10/2013,91560,70.00,Revenue,Barclaycard Commercial,59848
Chorley Borough Council,http://statistics.data.gov.uk/id/local-authority/30UE,Local Tax Collection,1010,Shared Service Arrangement,Bed and Breakfast Accommodation,40232,Miscellaneous Expenses,5034,Wrightington Hotel Wigan - Hotel Accom re evacuation Hotel Accom re evacuation ,30/10/2013,91560,70.00,Revenue,Barclaycard Commercial,59848
Chorley Borough Council,http://statistics.data.gov.uk/id/local-authority/30UE,Local Tax Collection,1010,Shared Service Arrangement,Bed and Breakfast Accommodation,40232,Miscellaneous Expenses,5034,Wrightington Hotel Wigan - Hotel Accom re evacuation Hotel Accom re evacuation ,30/10/2013,91560,70.00,Revenue,Barclaycard Commercial,59848
Chorley Borough Council,http://statistics.data.gov.uk/id/local-authority/30UE,Local Tax Collection,1010,Shared Service Arrangement,Bed and Breakfast Accommodation,40232,Miscellaneous Expenses,5034,Wrightington Hotel Wigan - Hotel Accom re evacuation Hotel Accom re evacuation ,30/10/2013,91560,70.00,Revenue,Barclaycard Commercial,59848
Chorley Borough Council,http://statistics.data.gov.uk/id/local-authority/30UE,Local Tax Collection,1010,Shared Service Arrangement,Bed and Breakfast Accommodation,40232,Miscellaneous Expenses,5034,Wrightington Hotel Wigan - Hotel Accom re evacuation Hotel Accom re evacuation ,30/10/2013,91560,70.00,Revenue,Barclaycard Commercial,59848
Chorley Borough Council,http://statistics.data.gov.uk/id/local-authority/30UE,Local Tax Collection,1010,Shared Service Arrangement,Bed and Breakfast Accommodation,40232,Miscellaneous Expenses,5034,Wrightington Hotel Wigan - Hotel Accom re evacuation Hotel Accom re evacuation ,30/10/2013,91560,70.00,Revenue,Barclaycard Commercial,59848
Chorley Borough Council,http://statistics.data.gov.uk/id/local-authority/30UE,Local Tax Collection,1010,Shared Service Arrangement,Bed and Breakfast Accommodation,40232,Miscellaneous Expenses,5034,Wrightington Hotel Wigan - Hotel Accom re evacuation Hotel Accom re evacuation ,30/10/2013,91560,70.00,Revenue,Barclaycard Commercial,59848
Chorley Borough Council,http://statistics.data.gov.uk/id/local-authority/30UE,Local Tax Collection,1010,Shared Service Arrangement,Bed and Breakfast Accommodation,40232,Miscellaneous Expenses,5034,Wrightington Hotel Wigan - Hotel Accom re evacuation Hotel Accom re evacuation ,30/10/2013,91560,70.00,Revenue,Barclaycard Commercial,59848
Chorley Borough Council,http://statistics.data.gov.uk/id/local-authority/30UE,Local Tax Collection,1010,Shared Service Arrangement,Bed and Breakfast Accommodation,40232,Miscellaneous Expenses,5034,Wrightington Hotel Wigan - Hotel Accom re evacuation Hotel Accom re evacuation ,30/10/2013,91560,70.00,Revenue,Barclaycard Commercial,59848
Chorley Borough Council,http://statistics.data.gov.uk/id/local-authority/30UE,Local Tax Collection,1010,Shared Service Arrangement,Bed and Breakfast Accommodation,40232,Miscellaneous Expenses,5034,Wrightington Hotel Wigan - Hotel Accom re evacuation Hotel Accom re evacuation ,30/10/2013,91560,80.00,Revenue,Barclaycard Commercial,59848
Chorley Borough Council,http://statistics.data.gov.uk/id/local-authority/30UE,Local Tax Collection,1010,Shared Service Arrangement,Bed and Breakfast Accommodation,40232,Miscellaneous Expenses,5034,Wrightington Hotel Wigan - Hotel Accom re evacuation Hotel Accom re evacuation ,30/10/2013,91560,85.00,Revenue,Barclaycard Commercial,59848
Chorley Borough Council,http://statistics.data.gov.uk/id/local-authority/30UE,Unapportionable Central OHeads,1009,Shared Service Arrangement,Computer Equipment-Purchase,40098,Communication and Computing,5028,Microsoftstore - 64 GB Surface Pro None 64 GB Surface Pro None,30/10/2013,91560,719.00,Revenue,Barclaycard Commercial,59848
Chorley Borough Council,http://statistics.data.gov.uk/id/local-authority/30UE,Democratic Represent and  Mgnt,1007,Shared Service Arrangement,Members Rail Fares,30033,Public Transport,5019,Trainline.com - Rail tickets to London for mtg with Planning Minister (Leader) Rail tickets to London for mtg,30/10/2013,91560,270.40,Revenue,Barclaycard Commercial,59848
Chorley Borough Council,http://statistics.data.gov.uk/id/local-authority/30UE,Local Tax Collection,1010,Shared Service Arrangement,HM Land Registry Fees,40174,Miscellaneous Expenses,5034,The Register Office - Purchase of 2 certificates from Registry Office Purchase of 2 certificates from Registry Office,30/10/2013,91560,8.00,Revenue,Barclaycard Commercial,59848
Chorley Borough Council,http://statistics.data.gov.uk/id/local-authority/30UE,Unapportionable Central OHeads,1009,Shared Service Arrangement,Legal Fees,40171,Miscellaneous Expenses,5034,HM Courts - Services - Court Payment Legal Services,30/10/2013,91560,200.00,Revenue,Barclaycard Commercial,59848
Chorley Borough Council,http://statistics.data.gov.uk/id/local-authority/30UE,Local Tax Collection,1010,Shared Service Arrangement,Legal Fees,40171,Miscellaneous Expenses,5034,HM Courts - Services - 377 liability orders,30/10/2013,91561,"1,131.00",Revenue,Barclaycard Commercial,59848
Chorley Borough Council,http://statistics.data.gov.uk/id/local-authority/30UE,Corporate Management,1008,Shared Service Arrangement,Staff Rail Fares,30032,Public Transport,5019,Trainline.com - Train ticket Poulton-le-Fylde - London,30/10/2013,91561,159.94,Revenue,Barclaycard Commercial,59848
Chorley Borough Council,http://statistics.data.gov.uk/id/local-authority/30UE,Local Tax Collection,1010,Shared Service Arrangement,Legal Fees,40171,Miscellaneous Expenses,5034,HM Courts - Services - 671  liability orders,30/10/2013,91561,"2,013.00",Revenue,Barclaycard Commercial,59848
Chorley Borough Council,http://statistics.data.gov.uk/id/local-authority/30UE,Central Support Services,1009,Shared Service Arrangement,Tools & Equipment - Purchase,40003,"Equipment, Furniture & Materia",5023,Amazon EU - Purchase of Tower Fans+J50,30/10/2013,91561,154.33,Revenue,Barclaycard Commercial,59848
Chorley Borough Council,http://statistics.data.gov.uk/id/local-authority/30UE,Unapportionable Central OHeads,1009,Shared Service Arrangement,Tools & Equipment - Purchase,40003,"Equipment, Furniture & Materia",5023,Amazon EU - Purchase of Tower Fans,30/10/2013,91561,154.33,Revenue,Barclaycard Commercial,59848
Chorley Borough Council,http://statistics.data.gov.uk/id/local-authority/30UE,Local Tax Collection,1010,Shared Service Arrangement,Legal Fees,40171,Miscellaneous Expenses,5034,HM Courts - Services - 51 liability orders,30/10/2013,91562,153.00,Revenue,Barclaycard Commercial,59848
Chorley Borough Council,http://statistics.data.gov.uk/id/local-authority/30UE,Corporate Management,1008,Shared Service Arrangement,Contaminated Land Invests,40206,Miscellaneous Expenses,5034,The Coal Authority - Coal Authority Search,30/10/2013,91562,237.60,Revenue,Barclaycard Commercial,59848
Chorley Borough Council,http://statistics.data.gov.uk/id/local-authority/30UE,Development Control,1091,Shared Service Arrangement,Publications,40054,"Printing, Stationery & General",5026,Amazon Mktplce - Planning Enforcement Hardback,30/10/2013,91562,62.04,Revenue,Barclaycard Commercial,59848
Chorley Borough Council,http://statistics.data.gov.uk/id/local-authority/30UE,Local Tax Collection,1010,Shared Service Arrangement,Legal Fees,40171,Miscellaneous Expenses,5034,M Courts - Services - 452 liability orders,30/10/2013,91562,"1,356.00",Revenue,Barclaycard Commercial,59848
Chorley Borough Council,http://statistics.data.gov.uk/id/local-authority/30UE,Community Development,1097,Shared Service Arrangement,Grants To Other Organisations,40127,Grants and Subscriptions,5031,Carpetright - Purchase of Carpet for Credit Union Shop,30/10/2013,91562,170.53,Revenue,Barclaycard Commercial,59848
Chorley Borough Council,http://statistics.data.gov.uk/id/local-authority/30UE,Unapportionable Central OHeads,1009,Shared Service Arrangement,Publicity - Advertising,40157,Miscellaneous Expenses,5034,Facebook - Facebook Ads payment,30/10/2013,91562,25.60,Revenue,Barclaycard Commercial,59848
Chorley Borough Council,http://statistics.data.gov.uk/id/local-authority/30UE,Unapportionable Central OHeads,1009,Shared Service Arrangement,Publicity - Advertising,40157,Miscellaneous Expenses,5034,Facebook - Facebook Ads payment,30/10/2013,91562,20.27,Revenue,Barclaycard Commercial,59848
Chorley Borough Council,http://statistics.data.gov.uk/id/local-authority/30UE,Unapportionable Central OHeads,1009,Shared Service Arrangement,Publicity - Advertising,40157,Miscellaneous Expenses,5034,Facebook - Facebook Ads payment,30/10/2013,91562,27.91,Revenue,Barclaycard Commercial,59848
Chorley Borough Council,http://statistics.data.gov.uk/id/local-authority/30UE,Culture & Heritage,1036,Health Environment & Neighbourhoods,Tools & Equipment - Maintenance,40005,"Equipment, Furniture & Materia",5023,Service and Maintenance of CCTV system,09/10/2013,91209,"2,267.50",Revenue,Baydale Control Systems,21154
Chorley Borough Council,http://statistics.data.gov.uk/id/local-authority/30UE,Culture & Heritage,1036,Health Environment & Neighbourhoods,Tools & Equipment - Maintenance,40005,"Equipment, Furniture & Materia",5023,Service and Maintenance of CCTV system,09/10/2013,91211,"1,583.22",Revenue,Baydale Control Systems,21154
Chorley Borough Council,http://statistics.data.gov.uk/id/local-authority/30UE,Culture & Heritage,1036,Health Environment & Neighbourhoods,Tools & Equipment - Maintenance,40005,"Equipment, Furniture & Materia",5023,Service and Maintenance of CCTV system,09/10/2013,91215,825.00,Revenue,Baydale Control Systems,21154
Chorley Borough Council,http://statistics.data.gov.uk/id/local-authority/30UE,Culture & Heritage,1036,Health Environment & Neighbourhoods,Tools & Equipment - Maintenance,40005,"Equipment, Furniture & Materia",5023,Service and Maintenance of CCTV system,09/10/2013,91216,670.58,Revenue,Baydale Control Systems,21154
Chorley Borough Council,http://statistics.data.gov.uk/id/local-authority/30UE,Culture & Heritage,1036,Health Environment & Neighbourhoods,Tools & Equipment - Maintenance,40005,"Equipment, Furniture & Materia",5023,Service and Maintenance of CCTV system,09/10/2013,91319,683.33,Revenue,Baydale Control Systems,21154
Chorley Borough Council,http://statistics.data.gov.uk/id/local-authority/30UE,Culture & Heritage,1036,Health Environment & Neighbourhoods,Tools & Equipment - Maintenance,40005,"Equipment, Furniture & Materia",5023,Service and Maintenance of CCTV system,11/10/2013,91439,"2,267.50",Revenue,Baydale Control Systems,21154
Chorley Borough Council,http://statistics.data.gov.uk/id/local-authority/30UE,Unapportionable Central OHeads,1009,"Customer, ICT & Transactional",Consultants` Fees,40077,Services,5027,Support Services as agreed with Customer Transactional and ICT Services.,09/10/2013,91237,900.00,Revenue,REDACTED PERSONAL DATA,22238
Chorley Borough Council,http://statistics.data.gov.uk/id/local-authority/30UE,Unapportionable Central OHeads,1009,Shared Service Arrangement,External Audit,40064,Services,5027,Auditing the Annual Return for the year ended 31 March 2013,25/10/2013,91516,"2,000.00",Revenue,BDO,52419
Chorley Borough Council,http://statistics.data.gov.uk/id/local-authority/30UE,Unapportionable Central OHeads,1009,Shared Service Arrangement,External Audit,40064,Services,5027,Additional correspondence required in order to obtain information to complete the audit (1 letter),25/10/2013,91516,30.00,Revenue,BDO,52419
Chorley Borough Council,http://statistics.data.gov.uk/id/local-authority/30UE,Homelessness,1075,Housing,Laundry,40042,"Clothing, Uniforms and Laundry",5025,Linen service at Cotswold Supported Housing,11/10/2013,91236,285.30,Revenue,Berendsen UK Ltd,20799
Chorley Borough Council,http://statistics.data.gov.uk/id/local-authority/30UE,Homelessness,1075,Housing,Miscellaneous Expenses,40200,Miscellaneous Expenses,5034,WSE1333 - Active Tower Blocks,16/10/2013,91358,51.65,Revenue,Bishop Sports And Leisure,17835
Chorley Borough Council,http://statistics.data.gov.uk/id/local-authority/30UE,Homelessness,1075,Housing,Miscellaneous Expenses,40200,Miscellaneous Expenses,5034,WSE4570 - Get Knotted,16/10/2013,91358,34.95,Revenue,Bishop Sports And Leisure,17835
Chorley Borough Council,http://statistics.data.gov.uk/id/local-authority/30UE,Homelessness,1075,Housing,Miscellaneous Expenses,40200,Miscellaneous Expenses,5034,WSE1430 - Super 4 In A Line,16/10/2013,91358,97.50,Revenue,Bishop Sports And Leisure,17835
Chorley Borough Council,http://statistics.data.gov.uk/id/local-authority/30UE,Homelessness,1075,Housing,Miscellaneous Expenses,40200,Miscellaneous Expenses,5034,WFB3200 - 2x Football Goal Posts,16/10/2013,91358,52.00,Revenue,Bishop Sports And Leisure,17835
Chorley Borough Council,http://statistics.data.gov.uk/id/local-authority/30UE,Homelessness,1075,Housing,Miscellaneous Expenses,40200,Miscellaneous Expenses,5034,WSE6210 - Super Catch,16/10/2013,91358,3.45,Revenue,Bishop Sports And Leisure,17835
Chorley Borough Council,http://statistics.data.gov.uk/id/local-authority/30UE,Homelessness,1075,Housing,Miscellaneous Expenses,40200,Miscellaneous Expenses,5034, WCK1820 -Kwik Cricket  - Medium Set,16/10/2013,91358,44.95,Revenue,Bishop Sports And Leisure,17835
Chorley Borough Council,http://statistics.data.gov.uk/id/local-authority/30UE,Homelessness,1075,Housing,Miscellaneous Expenses,40200,Miscellaneous Expenses,5034,Freight,16/10/2013,91358,8.00,Revenue,Bishop Sports And Leisure,17835
Chorley Borough Council,http://statistics.data.gov.uk/id/local-authority/30UE,Central Support Services,1009,Shared Service Arrangement,External Contractor,40198,Miscellaneous Expenses,5034,Provision of Payroll Services 2013 - 2014,25/10/2013,91723,"2,191.74",Revenue,Blackpool Borough Council,16518
Chorley Borough Council,http://statistics.data.gov.uk/id/local-authority/30UE,Central Support Services,1009,Shared Service Arrangement,External Contractor,40198,Miscellaneous Expenses,5034,Provision of Payroll Services 2013 - 2014,25/10/2013,91723,155.50,Revenue,Blackpool Borough Council,16518
Chorley Borough Council,http://statistics.data.gov.uk/id/local-authority/30UE,Capital,Capital,Streetscene & Leisure Contracts,Equipment,3014,Capital Expenditure,Capital,Supply 60 pieces of Heras fencing 3.5m plus blocks and clips as required as per your price to be delivered to Bengal St,30/10/2013,91824,"1,595.00",Capital,Blok`N`Mesh UK Limited,58305
Chorley Borough Council,http://statistics.data.gov.uk/id/local-authority/30UE,Economic Development,1096,Economic Development,Professional Fees,40063,Services,5027,St Georges Street Scheme,04/10/2013,91226,750.00,Revenue,Borough of Pendle (Engineering and Design Services,54929
Chorley Borough Council,http://statistics.data.gov.uk/id/local-authority/30UE,Homelessness,1075,Chief Executives Office,Gas,20014,Energy Costs,5006,Energy Costs,23/10/2013,91555,824.30,Revenue,British Gas Business,22242
Chorley Borough Council,http://statistics.data.gov.uk/id/local-authority/30UE,Community Development,1097,Chief Executives Office,Gas,20014,Energy Costs,5006,Energy Costs,23/10/2013,91555,37.39,Revenue,British Gas Business,22242
Chorley Borough Council,http://statistics.data.gov.uk/id/local-authority/30UE,Democratic Represent and  Mgnt,1007,Chief Executives Office,Gas,20014,Energy Costs,5006,Energy Costs,23/10/2013,91555,170.78,Revenue,British Gas Business,22242
Chorley Borough Council,http://statistics.data.gov.uk/id/local-authority/30UE,Democratic Represent and  Mgnt,1007,Chief Executives Office,Gas,20014,Energy Costs,5006,Energy Costs,23/10/2013,91555,11.13,Revenue,British Gas Business,22242
Chorley Borough Council,http://statistics.data.gov.uk/id/local-authority/30UE,Unapportionable Central OHeads,1009,Chief Executives Office,Gas,20014,Energy Costs,5006,Energy Costs,23/10/2013,91555,35.14,Revenue,British Gas Business,22242
Chorley Borough Council,http://statistics.data.gov.uk/id/local-authority/30UE,Democratic Represent and  Mgnt,1007,Chief Executives Office,Gas,20014,Energy Costs,5006,Energy Costs,23/10/2013,91555,51.21,Revenue,British Gas Business,22242
Chorley Borough Council,http://statistics.data.gov.uk/id/local-authority/30UE,Democratic Represent and  Mgnt,1007,Chief Executives Office,Gas,20014,Energy Costs,5006,Energy Costs,23/10/2013,91555,46.67,Revenue,British Gas Business,22242
Chorley Borough Council,http://statistics.data.gov.uk/id/local-authority/30UE,Democratic Represent and  Mgnt,1007,Chief Executives Office,Gas,20014,Energy Costs,5006,Energy Costs,23/10/2013,91555,115.45,Revenue,British Gas Business,22242
Chorley Borough Council,http://statistics.data.gov.uk/id/local-authority/30UE,Democratic Represent and  Mgnt,1007,Chief Executives Office,Gas,20014,Energy Costs,5006,Energy Costs,23/10/2013,91555,12.91,Revenue,British Gas Business,22242
Chorley Borough Council,http://statistics.data.gov.uk/id/local-authority/30UE,Democratic Represent and  Mgnt,1007,Chief Executives Office,Gas,20014,Energy Costs,5006,Energy Costs,23/10/2013,91555,85.41,Revenue,British Gas Business,22242
Chorley Borough Council,http://statistics.data.gov.uk/id/local-authority/30UE,Unapportionable Central OHeads,1009,Chief Executives Office,Gas,20014,Energy Costs,5006,Energy Costs,23/10/2013,91555,721.02,Revenue,British Gas Business,22242
Chorley Borough Council,http://statistics.data.gov.uk/id/local-authority/30UE,Democratic Represent and  Mgnt,1007,Chief Executives Office,Gas,20014,Energy Costs,5006,Energy Costs,23/10/2013,91555,740.39,Revenue,British Gas Business,22242
Chorley Borough Council,http://statistics.data.gov.uk/id/local-authority/30UE,Unapportionable Central OHeads,1009,Chief Executives Office,Gas,20014,Energy Costs,5006,Energy Costs,23/10/2013,91555,506.00,Revenue,British Gas Business,22242
Chorley Borough Council,http://statistics.data.gov.uk/id/local-authority/30UE,Planning Policy,1092,Governance,Electricity,20013,Energy Costs,5006,Energy Costs,25/10/2013,91668,387.53,Revenue,British Gas Business,22242
Chorley Borough Council,http://statistics.data.gov.uk/id/local-authority/30UE,Economic Development,1096,Economic Development,Grants To Other Organisations,40127,Grants and Subscriptions,5031,Starting in business grant,23/10/2013,91570,501.50,Revenue,Buckshaw Business Hub,62049
Chorley Borough Council,http://statistics.data.gov.uk/id/local-authority/30UE,Corporate Management,1008,Health Environment & Neighbourhoods,Radiat'N/Food Sfty System,40205,Miscellaneous Expenses,5034,"EHL_ Payment 2013/14",09/10/2013,91306,250.00,Revenue,Burnley Borough Council,17114
Chorley Borough Council,http://statistics.data.gov.uk/id/local-authority/30UE,Unapportionable Central OHeads,1009,"Customer, ICT & Transactional",Printing,40043,"Printing, Stationery & General",5026,useage,30/10/2013,91344,296.57,Revenue,Bytes Document Solutions,20052
Chorley Borough Council,http://statistics.data.gov.uk/id/local-authority/30UE,Service Management & Support,1009,Streetscene & Leisure Contracts,Supplies-Grounds Maintenance,40025,"Equipment, Furniture & Materia",5023,Mortor,30/10/2013,91326,417.50,Revenue,C & W BERRY LIMITED,18180
Chorley Borough Council,http://statistics.data.gov.uk/id/local-authority/30UE,Unapportionable Central OHeads,1009,Streetscene & Leisure Contracts,Refuse Collection,20037,Cleaning and Domestic Supplies,5012,Emotying of interceptor tank and cleaning of gullies at Bengal St depot from 01/04/2013 to 31/03/2014,02/10/2013,91018,300.00,Revenue,C J Lyon,16579
Chorley Borough Council,http://statistics.data.gov.uk/id/local-authority/30UE,Unapportionable Central OHeads,1009,Streetscene & Leisure Contracts,Refuse Collection,20037,Cleaning and Domestic Supplies,5012,Emotying of interceptor tank and cleaning of gullies at Bengal St depot from 01/04/2013 to 31/03/2014,30/10/2013,91605,300.00,Revenue,C J Lyon,16579
Chorley Borough Council,http://statistics.data.gov.uk/id/local-authority/30UE,Unapportionable Central OHeads,1009,Streetscene & Leisure Contracts,Refuse Collection,20037,Cleaning and Domestic Supplies,5012,Emotying of interceptor tank and cleaning of gullies at Bengal St depot from 01/04/2013 to 31/03/2014,30/10/2013,91624,300.00,Revenue,C J Lyon,16579
Chorley Borough Council,http://statistics.data.gov.uk/id/local-authority/30UE,Unapportionable Central OHeads,1009,"Customer, ICT & Transactional",Emergency Call Out System,40096,Communication and Computing,5028,Call Charges August 2013,11/10/2013,91366,528.80,Revenue,CallCare Ltd,20257
Chorley Borough Council,http://statistics.data.gov.uk/id/local-authority/30UE,Unapportionable Central OHeads,1009,"Customer, ICT & Transactional",Emergency Call Out System,40096,Communication and Computing,5028,Standing Charge October 2013,11/10/2013,91366,120.00,Revenue,CallCare Ltd,20257
Chorley Borough Council,http://statistics.data.gov.uk/id/local-authority/30UE,Unapportionable Central OHeads,1009,"Customer, ICT & Transactional",Printing,40043,"Printing, Stationery & General",5026,GB-505918-OKS,16/10/2013,91317,"3,363.98",Revenue,Canon (UK) Ltd,17492
Chorley Borough Council,http://statistics.data.gov.uk/id/local-authority/30UE,Unapportionable Central OHeads,1009,"Customer, ICT & Transactional",Printing,40043,"Printing, Stationery & General",5026,GB-505928-OKS,16/10/2013,91317,971.08,Revenue,Canon (UK) Ltd,17492
Chorley Borough Council,http://statistics.data.gov.uk/id/local-authority/30UE,Unapportionable Central OHeads,1009,"Customer, ICT & Transactional",Printing,40043,"Printing, Stationery & General",5026,GB-506449-OKS,16/10/2013,91317,372.57,Revenue,Canon (UK) Ltd,17492
Chorley Borough Council,http://statistics.data.gov.uk/id/local-authority/30UE,Service Management & Support,1009,Streetscene & Leisure Contracts,Supplies-Grounds Maintenance,40025,"Equipment, Furniture & Materia",5023,Supply 4 x tonne of 6mm wearing coarse to be collected by Chorley Council,30/10/2013,91785,350.28,Revenue,CEMEX UK Materials Ltd,16849
Chorley Borough Council,http://statistics.data.gov.uk/id/local-authority/30UE,Service Management & Support,1009,Streetscene & Leisure Contracts,Registered Plant - Maintenance,40247,"Equipment, Furniture & Materia",5023,Supply Sabo roberine bottom blades to suite John Deere 900 13 hole blade,23/10/2013,91124,420.72,Revenue,Central Spares Ltd,17437
Chorley Borough Council,http://statistics.data.gov.uk/id/local-authority/30UE,Corporate Management,1008,Health Environment & Neighbourhoods,Taxi Testing & Vehicle Safety Report,40234,Services,5027,MOT,09/10/2013,91222,493.65,Revenue,Chorley Autocare Ltd,17110
Chorley Borough Council,http://statistics.data.gov.uk/id/local-authority/30UE,Corporate Management,1008,Health Environment & Neighbourhoods,Taxi Testing & Vehicle Safety Report,40234,Services,5027,MOT,09/10/2013,91222,76.95,Revenue,Chorley Autocare Ltd,17110
Chorley Borough Council,http://statistics.data.gov.uk/id/local-authority/30UE,Democratic Represent and  Mgnt,1007,Health Environment & Neighbourhoods,Children's Activities,40188,Miscellaneous Expenses,5034,Delivery of mini playdays and Playday for bouncy castle and slide Collection and drop off - table and chairs for playday,30/10/2013,91780,995.00,Revenue,Chorley Bouncy Castles,55301
Chorley Borough Council,http://statistics.data.gov.uk/id/local-authority/30UE,Democratic Represent and  Mgnt,1007,Health Environment & Neighbourhoods,Sports Development Initiatives,40186,Miscellaneous Expenses,5034,Delivery of the Sportivate programme in Snorkel Diver for young people. At ASLC To include Hire charges,16/10/2013,91504,"1,436.50",Revenue,Chorley BSAC,61783
Chorley Borough Council,http://statistics.data.gov.uk/id/local-authority/30UE,Democratic Represent and  Mgnt,1007,Health Environment & Neighbourhoods,Children's Activities,40188,Miscellaneous Expenses,5034,Delivery of Athletics camp during summer,25/10/2013,91607,486.00,Revenue,Chorley School Sport Partnership,56115
Chorley Borough Council,http://statistics.data.gov.uk/id/local-authority/30UE,Community Development,1097,Policy & Performance,Citizens Advice Bureau,40125,Grants and Subscriptions,5031,Core funding,30/10/2013,91779,"28,400.00",Revenue,Chorley Sth Ribble & Dist Citizen Advice Bureaux,17035
Chorley Borough Council,http://statistics.data.gov.uk/id/local-authority/30UE,Economic Development,1096,Economic Development,Grants To Other Organisations,40127,Grants and Subscriptions,5031,Shop Floor improvement grant,23/10/2013,91563,961.38,Revenue,Chorley Travel Lounge Ltd,61872
Chorley Borough Council,http://statistics.data.gov.uk/id/local-authority/30UE,Economic Development,1096,Economic Development,Grants To Other Organisations,40127,Grants and Subscriptions,5031,Shop floor refurbishment grant,23/10/2013,91563,"5,000.00",Revenue,Chorley Travel Lounge Ltd,61872
Chorley Borough Council,http://statistics.data.gov.uk/id/local-authority/30UE,Economic Development,1096,Economic Development,Grants To Other Organisations,40127,Grants and Subscriptions,5031,Busomess rates subsidy,23/10/2013,91563,"1,082.05",Revenue,Chorley Travel Lounge Ltd,61872
Chorley Borough Council,http://statistics.data.gov.uk/id/local-authority/30UE,Economic Development,1096,Economic Development,Grants To Other Organisations,40127,Grants and Subscriptions,5031,Starting in business grant,23/10/2013,91569,750.00,Revenue,Chorley Travel Lounge Ltd,61872
Chorley Borough Council,http://statistics.data.gov.uk/id/local-authority/30UE,Democratic Represent and  Mgnt,1007,Streetscene & Leisure Contracts,Burglar Alarms & Security Systems,20075,Fixtures and Fittings,5010,Annual charge,25/10/2013,91608,"1,504.38",Revenue,Chubb Electronic Sec Sys Ltd,16228
Chorley Borough Council,http://statistics.data.gov.uk/id/local-authority/30UE,Economic Development,1096,Economic Development,Publicity - Advertising,40157,Miscellaneous Expenses,5034,"To supply 200m of 2 colour printed bunting.  Triangular fabric pennants, through print, sown to cord in lengths of 10 metres",25/10/2013,89725,580.00,Revenue,City Dressing Ltd,59487
Chorley Borough Council,http://statistics.data.gov.uk/id/local-authority/30UE,Corporate Management,1008,Policy & Performance,Translation Services,40238,Services,5027,2 x sign language interpreters for the Equality Forum on 17 October 2013,25/10/2013,91693,277.50,Revenue,Co Sign Ltd,17135
Chorley Borough Council,http://statistics.data.gov.uk/id/local-authority/30UE,Democratic Represent and  Mgnt,1007,Health Environment & Neighbourhoods,Sports Development Initiatives,40186,Miscellaneous Expenses,5034,"Delivery of Sportscoach UK Safeguarding Workshop in Chorley Ref: Peter O`Neil Sept 23rd 6pm till 9pm Venue TBC, ",02/10/2013,91000,10.83,Revenue,Coachwise Ltd,21114
Chorley Borough Council,http://statistics.data.gov.uk/id/local-authority/30UE,Democratic Represent and  Mgnt,1007,Health Environment & Neighbourhoods,Sports Development Initiatives,40186,Miscellaneous Expenses,5034,"Delivery of Sportscoach UK Safeguarding Workshop in Chorley Ref: Peter O`Neil Sept 23rd 6pm till 9pm Venue TBC, ",02/10/2013,91000,319.90,Revenue,Coachwise Ltd,21114
Chorley Borough Council,http://statistics.data.gov.uk/id/local-authority/30UE,Central Support Services,1009,HR & Org. Development,Service Fees,40056,Services,5027,Counselling for staff,16/10/2013,91301,480.00,Revenue,Counselling and Training Alliance,22273
Chorley Borough Council,http://statistics.data.gov.uk/id/local-authority/30UE,Development Control,1091,Planning,Computer Equipment-Maintenance,40105,Communication and Computing,5028,Software Contract,04/10/2013,90309,405.00,Revenue,Covergold Ltd,16977
Chorley Borough Council,http://statistics.data.gov.uk/id/local-authority/30UE,Unapportionable Central OHeads,1009,Policy & Performance,Exhibitions & Special Events,40158,Miscellaneous Expenses,5034,Snow slide for Christmas attraction,23/10/2013,91642,"4,393.20",Revenue,Creative Leisure,61876
Chorley Borough Council,http://statistics.data.gov.uk/id/local-authority/30UE,Service Management & Support,1009,Streetscene & Leisure Contracts,Diesel/Derv,30007,Direct Transport Costs,5016,Supply 8000litres of road diesel to be delivered to Bengal St depot Chorley PR71SA on 15/10/2013 as per the chest,23/10/2013,91576,"8,400.00",Revenue,Crown Oil Ltd,16739
Chorley Borough Council,http://statistics.data.gov.uk/id/local-authority/30UE,Central Support Services,1009,"Customer, ICT & Transactional",Miscellaneous Expenses,40200,Miscellaneous Expenses,5034,Service agreement no. 507 - Fujitsu 5750C & Kofax 650I reader,09/10/2013,91254,515.55,Revenue,CULL micro Imaging Ltd,22097
Chorley Borough Council,http://statistics.data.gov.uk/id/local-authority/30UE,Democratic Represent and  Mgnt,1007,Streetscene & Leisure Contracts,Children's Activities,40188,Miscellaneous Expenses,5034,Deliver 5 coaching sessions for the Get Up and Go fishing sessions at Yarrow valley Park,09/10/2013,91239,500.00,Revenue,Curwens Angling Centre,61163
Chorley Borough Council,http://statistics.data.gov.uk/id/local-authority/30UE,Service Management & Support,1009,Streetscene & Leisure Contracts,Supplies-Grounds Maintenance,40025,"Equipment, Furniture & Materia",5023,Balmoral Bench 1.8m KD Stainless steel plaque 6``x2``,30/10/2013,91722,362.49,Revenue,Cyan,61782
Chorley Borough Council,http://statistics.data.gov.uk/id/local-authority/30UE,Other Short Term Debtors,,HR & Org. Development,Other Debtors,98,Balance Sheet,Balance,ZW Cycle to work. Certificate number: G56314978523,02/10/2013,91142,833.33,Revenue,Cyclescheme Ltd,22390
Chorley Borough Council,http://statistics.data.gov.uk/id/local-authority/30UE,Service Management & Support,1009,Streetscene & Leisure Contracts,Supplies-Grounds Maintenance,40025,"Equipment, Furniture & Materia",5023,supplier of daffodils & tulip bulbs,16/10/2013,91544,"2,741.60",Revenue,D&R Simmons Ltd,49795
Chorley Borough Council,http://statistics.data.gov.uk/id/local-authority/30UE,Economic Development,1096,Economic Development,Grants To Other Organisations,40127,Grants and Subscriptions,5031,starting in business grant,30/10/2013,91677,273.50,Revenue,NAME REDACTED,62170
Chorley Borough Council,http://statistics.data.gov.uk/id/local-authority/30UE,Economic Development,1096,Economic Development,Consultants` Fees,40077,Services,5027,Provision of Town Centre Masterplan,23/10/2013,91595,"11,021.70",Revenue,Deloitte LLP,58651
Chorley Borough Council,http://statistics.data.gov.uk/id/local-authority/30UE,Collection Fund Revenue Accoun,,Shared Service Arrangement,NNDR Central Share,2034,Precepts & Collection Fund,Precept,collection fund,30/10/2013,91737,"1,366,419.00",Revenue,Department of Communities and Local Government,16280
Chorley Borough Council,http://statistics.data.gov.uk/id/local-authority/30UE,Non Domestic Rates Redistribut,,Shared Service Arrangement,Tariff to Central Government,49000,Expenditure not in NCOS,,retained business rates,30/10/2013,91737,"787,452.00",Revenue,Department of Communities and Local Government,16280
Chorley Borough Council,http://statistics.data.gov.uk/id/local-authority/30UE,Collection Fund Revenue Accoun,,Shared Service Arrangement,NNDR Central Share,2034,Precepts & Collection Fund,Precept,Collection fund,30/10/2013,91738,"1,366,419.00",Revenue,Department of Communities and Local Government,16280
Chorley Borough Council,http://statistics.data.gov.uk/id/local-authority/30UE,Non Domestic Rates Redistribut,,Shared Service Arrangement,Tariff to Central Government,49000,Expenditure not in NCOS,,retained business rates,30/10/2013,91738,"787,452.00",Revenue,Department of Communities and Local Government,16280
Chorley Borough Council,http://statistics.data.gov.uk/id/local-authority/30UE,Local Tax Collection,1010,"Customer, ICT & Transactional",Postages,40082,Communication and Computing,5028,Daily Courier service to anite,04/10/2013,91012,276.13,Revenue,Dhl Express (UK) Ltd,17778
Chorley Borough Council,http://statistics.data.gov.uk/id/local-authority/30UE,Corporate Management,1008,HR & Org. Development,CRB Disclosure Fees,40070,Services,5027,7 DBS checks for Customer and Transactional Services,30/10/2013,91021,308.00,Revenue,Disclosure & Barring Service,16387
Chorley Borough Council,http://statistics.data.gov.uk/id/local-authority/30UE,Unapportionable Central OHeads,1009,HR & Org. Development,HR Recruitment Expenses,15200,Indirect Employee Expenses,5002,F077396680,30/10/2013,91021,88.00,Revenue,Disclosure & Barring Service,16387
Chorley Borough Council,http://statistics.data.gov.uk/id/local-authority/30UE,Unapportionable Central OHeads,1009,Health Environment & Neighbourhoods,HR Recruitment Expenses,15200,Indirect Employee Expenses,5002,F077396682,30/10/2013,91302,88.00,Revenue,Disclosure & Barring Service,16387
Chorley Borough Council,http://statistics.data.gov.uk/id/local-authority/30UE,Corporate Management,1008,Health Environment & Neighbourhoods,CRB Disclosure Fees,40070,Services,5027,CRB Checks,30/10/2013,91302,308.00,Revenue,Disclosure & Barring Service,16387
Chorley Borough Council,http://statistics.data.gov.uk/id/local-authority/30UE,Economic Development,1096,Economic Development,Grants To Other Organisations,40127,Grants and Subscriptions,5031,Starting in business grant,23/10/2013,91568,750.00,Revenue,NAME REDACTED,61878
Chorley Borough Council,http://statistics.data.gov.uk/id/local-authority/30UE,Unapportionable Central OHeads,1009,Governance,Postages,40082,Communication and Computing,5028, DX Subscription 01.05.13 to 30.04.14,09/10/2013,90846,250.00,Revenue,DX Network Services Ltd,17551
Chorley Borough Council,http://statistics.data.gov.uk/id/local-authority/30UE,Community Development,1097,Governance,Rent/Hire Of Premises,20017,Premises Rents,5007,Annual Rent in respect of 29 Market Street,09/10/2013,91188,"3,125.00",Revenue,Elmwood Property Investments Limited,60926
Chorley Borough Council,http://statistics.data.gov.uk/id/local-authority/30UE,Democratic Represent and  Mgnt,1007,Health Environment & Neighbourhoods,Training Course Fees,17010,Indirect Employee Expenses,5002,"Three places on Table Tennis Level One at St Augustines, Preston",23/10/2013,90690,570.00,Revenue,English Table Tennis Association Ltd,18923
Chorley Borough Council,http://statistics.data.gov.uk/id/local-authority/30UE,Economic Development,1096,Economic Development,Miscellaneous Expenses,40200,Miscellaneous Expenses,5034,10 279.28.720 Yellow 1200 x 215 x 65 13kg Rubber Cable Protection Ramps and Rubber Cable Protection Ramps,11/10/2013,91490,"1,002.20",Revenue,ESE Direct,61608
Chorley Borough Council,http://statistics.data.gov.uk/id/local-authority/30UE,Democratic Represent and  Mgnt,1007,Governance,Other Fees,40212,Miscellaneous Expenses,5034,Balance of payment for dressing the Lancastrian Suite for promotional shots.,30/10/2013,91777,333.33,Revenue,Event Entertainment Ltd,62042
Chorley Borough Council,http://statistics.data.gov.uk/id/local-authority/30UE,Service Management & Support,1009,Streetscene & Leisure Contracts,Tools & Equipment - Maintenance,40005,"Equipment, Furniture & Materia",5023,Supply items on Invoice number 1789075 already received,09/10/2013,91342,288.00,Revenue,F R Sharrock Ltd,18091
Chorley Borough Council,http://statistics.data.gov.uk/id/local-authority/30UE,Service Management & Support,1009,Streetscene & Leisure Contracts,Registered Plant - Maintenance,40247,"Equipment, Furniture & Materia",5023,Carryout roller repairs to wing roller on hired Spearhead triple cutting flail as per Doc No 186868 and 187738 ,09/10/2013,91378,916.98,Revenue,F R Sharrock Ltd,18091
Chorley Borough Council,http://statistics.data.gov.uk/id/local-authority/30UE,Service Management & Support,1009,Streetscene & Leisure Contracts,Hire Of Transport,30028,Contrct Hire & Operating Lease,5018,Hire of Case tractor and side arm flail at price quoted for 52 week period has per Email from Mark Dixon ,30/10/2013,91519,"1,714.37",Revenue,F R Sharrock Ltd,18091
Chorley Borough Council,http://statistics.data.gov.uk/id/local-authority/30UE,Democratic Represent and  Mgnt,1007,Health Environment & Neighbourhoods,Training Course Fees,17010,Indirect Employee Expenses,5002,Provide place for Peter O`Neill on FA Youth Module level three-developing the play. 29th April CYA349 Cheshire.,09/10/2013,87547,345.00,Revenue,FA Learning,58005
Chorley Borough Council,http://statistics.data.gov.uk/id/local-authority/30UE,Service Management & Support,1009,Streetscene & Leisure Contracts,Grounds Maintenance Contractor,20043,Grounds Maintenance Costs,5013,Thin a shelterbelt by 30% and clear area 1m from fence,25/10/2013,91646,"2,900.00",Revenue,Fassfern Forestry,54839
Chorley Borough Council,http://statistics.data.gov.uk/id/local-authority/30UE,Service Management & Support,1009,Streetscene & Leisure Contracts,Supplies-Grounds Maintenance,40025,"Equipment, Furniture & Materia",5023,Pitchmarker Q2 Nozzle tip orange Top Hat filters,04/10/2013,91265,"1,219.85",Revenue,Fleet Line Markers,60558
Chorley Borough Council,http://statistics.data.gov.uk/id/local-authority/30UE,Service Management & Support,1009,Streetscene & Leisure Contracts,Supplies-Grounds Maintenance,40025,"Equipment, Furniture & Materia",5023,45 x 15 litre tubs of Q2 Pitchmarker,25/10/2013,91534,"1,211.85",Revenue,Fleet Line Markers,60558
Chorley Borough Council,http://statistics.data.gov.uk/id/local-authority/30UE,Homelessness,1075,Housing,Miscellaneous Expenses,40200,Miscellaneous Expenses,5034,"Product: School Storage Unit Colour: GreenProduct Code: SCHOOL 1Price includes delivery.",30/10/2013,91662,"1,266.63",Revenue,Flexiform Business Furniture,56394
Chorley Borough Council,http://statistics.data.gov.uk/id/local-authority/30UE,Service Management & Support,1009,Streetscene & Leisure Contracts,Freight Transport Assoc Fees,40150,Grants and Subscriptions,5031,Carryout 6 weekly safety inspection on DK07LDE for Olicence compliance,09/10/2013,91328,112.30,Revenue,Freight Transport Assoc Ltd,16333
Chorley Borough Council,http://statistics.data.gov.uk/id/local-authority/30UE,Service Management & Support,1009,Streetscene & Leisure Contracts,Freight Transport Assoc Fees,40150,Grants and Subscriptions,5031,Carryout 6 weekly safety inspection on DK56JWL for Olicence compliance,09/10/2013,91328,112.30,Revenue,Freight Transport Assoc Ltd,16333
Chorley Borough Council,http://statistics.data.gov.uk/id/local-authority/30UE,Service Management & Support,1009,Streetscene & Leisure Contracts,Freight Transport Assoc Fees,40150,Grants and Subscriptions,5031,Carryout 6 weekly safety inspection on DK05CXG for Olicence compliance,09/10/2013,91328,112.30,Revenue,Freight Transport Assoc Ltd,16333
Chorley Borough Council,http://statistics.data.gov.uk/id/local-authority/30UE,Service Management & Support,1009,Streetscene & Leisure Contracts,Freight Transport Assoc Fees,40150,Grants and Subscriptions,5031,Carryout 6 weekly safety inspection on PN02HRL for Olicence compliance,09/10/2013,91328,112.30,Revenue,Freight Transport Assoc Ltd,16333
Chorley Borough Council,http://statistics.data.gov.uk/id/local-authority/30UE,Capital,Capital,Housing,Grants,3002,Capital Expenditure,Capital,Capital Works - Disabled Facility grant,30/10/2013,91705,"3,230.00",Capital,G McGavock Ltd,16921
Chorley Borough Council,http://statistics.data.gov.uk/id/local-authority/30UE,Democratic Represent and  Mgnt,1007,Streetscene & Leisure Contracts,Security Service,40062,Services,5027,All seasons leisure centre,23/10/2013,91620,138.79,Revenue,G4S Cash Solutions UK Ltd,22099
Chorley Borough Council,http://statistics.data.gov.uk/id/local-authority/30UE,Democratic Represent and  Mgnt,1007,Streetscene & Leisure Contracts,Security Service,40062,Services,5027,Brinscall swimming pool,23/10/2013,91620,54.31,Revenue,G4S Cash Solutions UK Ltd,22099
Chorley Borough Council,http://statistics.data.gov.uk/id/local-authority/30UE,Unapportionable Central OHeads,1009,Streetscene & Leisure Contracts,Security Service,40062,Services,5027,Chorley Civic Offices,23/10/2013,91620,54.31,Revenue,G4S Cash Solutions UK Ltd,22099
Chorley Borough Council,http://statistics.data.gov.uk/id/local-authority/30UE,Democratic Represent and  Mgnt,1007,Streetscene & Leisure Contracts,Security Service,40062,Services,5027,Clayton Green Sports Centre,23/10/2013,91620,54.32,Revenue,G4S Cash Solutions UK Ltd,22099
Chorley Borough Council,http://statistics.data.gov.uk/id/local-authority/30UE,Homelessness,1075,Streetscene & Leisure Contracts,Security Service,40062,Services,5027,Cotswold House,23/10/2013,91620,27.16,Revenue,G4S Cash Solutions UK Ltd,22099
Chorley Borough Council,http://statistics.data.gov.uk/id/local-authority/30UE,Economic Development,1096,Economic Development,Grants To Other Organisations,40127,Grants and Subscriptions,5031,Shop floor refurb grant,25/10/2013,91674,"3,000.00",Revenue,Gaurav Dhar,62061
Chorley Borough Council,http://statistics.data.gov.uk/id/local-authority/30UE,Business Support,1095,Governance,Gas,20014,Energy Costs,5006,Energy Costs,23/10/2013,91468,364.45,Revenue,Gazprom Energy,56502
Chorley Borough Council,http://statistics.data.gov.uk/id/local-authority/30UE,Service Management & Support,1009,Streetscene & Leisure Contracts,Supplies-Grounds Maintenance,40025,"Equipment, Furniture & Materia",5023,"Pendulam seat, chain & sleeve x 2SP-05-0 6 Ropes for bird nest seat (black) 6 pairsSP-24-001",25/10/2013,91580,653.00,Revenue,GB Sport & Leisure,21305
Chorley Borough Council,http://statistics.data.gov.uk/id/local-authority/30UE,Corporate Management,1008,Streetscene & Leisure Contracts,Contaminated Land Invests,40206,Miscellaneous Expenses,5034,Standard service and calibration of GA2000 Gas Analyser In-line Water Trap Assembly kit (part number GAA1.8),18/10/2013,91545,522.00,Revenue,Geotechnicalinstruments UK Ltd,17461
Chorley Borough Council,http://statistics.data.gov.uk/id/local-authority/30UE,Democratic Represent and  Mgnt,1007,Streetscene & Leisure Contracts,Lifelong Learning Activities,40194,Miscellaneous Expenses,5034,Tapestry Loom @ 200 plus accompaniments @ 50 for Astley hall school sessions,16/10/2013,91457,258.00,Revenue,Gloranna Pringle,22525
Chorley Borough Council,http://statistics.data.gov.uk/id/local-authority/30UE,Corporate Management,1008,Health Environment & Neighbourhoods,Tools & Equipment - Purchase,40003,"Equipment, Furniture & Materia",5023,NO2 Tube,30/10/2013,91281,548.01,Revenue,Gradko International LTD,21577
Chorley Borough Council,http://statistics.data.gov.uk/id/local-authority/30UE,Community Safety Crime Reduct,1043,Health Environment & Neighbourhoods,Vandalism Repairs,20005,Repairs Maintenance & Alts,5005,12 month contract for the removal of Graffiti in accordance with contract conditions and value added cleaning work as agreed,02/10/2013,91074,"1,246.87",Revenue,Graffiti Removal (North) Ltd,17320
Chorley Borough Council,http://statistics.data.gov.uk/id/local-authority/30UE,Service Management & Support,1009,Streetscene & Leisure Contracts,Supplies & Consumables -Street Cleansing,40235,"Equipment, Furniture & Materia",5023,Supply Ratchet head gear for 10`` polycarbonate visor,09/10/2013,91339,170.00,Revenue,Guardsman Ltd,22411
Chorley Borough Council,http://statistics.data.gov.uk/id/local-authority/30UE,Service Management & Support,1009,Streetscene & Leisure Contracts,Supplies & Consumables -Street Cleansing,40235,"Equipment, Furniture & Materia",5023,Supply WP96 Peltor 10`` clear visor compatible with above head gear No ZZZ0131453,09/10/2013,91339,408.80,Revenue,Guardsman Ltd,22411
Chorley Borough Council,http://statistics.data.gov.uk/id/local-authority/30UE,Service Management & Support,1009,Streetscene & Leisure Contracts,Supplies & Consumables -Street Cleansing,40235,"Equipment, Furniture & Materia",5023,Supply Grabn grip premium quality glove size 9 No GNG,09/10/2013,91339,28.80,Revenue,Guardsman Ltd,22411
Chorley Borough Council,http://statistics.data.gov.uk/id/local-authority/30UE,Service Management & Support,1009,Streetscene & Leisure Contracts,Supplies & Consumables -Street Cleansing,40235,"Equipment, Furniture & Materia",5023,Supply polyflex 8802G Grey seamless knitted nylon glove with PU coated palm EN388 4142 SIZE 9 No GPUNL,09/10/2013,91339,23.00,Revenue,Guardsman Ltd,22411
Chorley Borough Council,http://statistics.data.gov.uk/id/local-authority/30UE,Unapportionable Central OHeads,1009,Shared Service Arrangement,HM Land Registry Fees,40174,Miscellaneous Expenses,5034,Legal Land Reg,30/10/2013,91792,3.00,Revenue,H M Land Registry,17567
Chorley Borough Council,http://statistics.data.gov.uk/id/local-authority/30UE,Unapportionable Central OHeads,1009,Shared Service Arrangement,HM Land Registry Fees,40174,Miscellaneous Expenses,5034,Liberata Land Reg,30/10/2013,91792,26.00,Revenue,H M Land Registry,17567
Chorley Borough Council,http://statistics.data.gov.uk/id/local-authority/30UE,Local Tax Collection,1010,Shared Service Arrangement,HM Land Registry Fees,40174,Miscellaneous Expenses,5034,Local Tax land reg,30/10/2013,91792,6.00,Revenue,H M Land Registry,17567
Chorley Borough Council,http://statistics.data.gov.uk/id/local-authority/30UE,Development Control,1091,Shared Service Arrangement,HM Land Registry Fees,40174,Miscellaneous Expenses,5034,Planning,30/10/2013,91792,62.00,Revenue,H M Land Registry,17567
Chorley Borough Council,http://statistics.data.gov.uk/id/local-authority/30UE,Corporate Management,1008,Shared Service Arrangement,HM Land Registry Fees,40174,Miscellaneous Expenses,5034,People,30/10/2013,91792,177.00,Revenue,H M Land Registry,17567
Chorley Borough Council,http://statistics.data.gov.uk/id/local-authority/30UE,Housing Benefit Administration,1077,Shared Service Arrangement,HM Land Registry Fees,40174,Miscellaneous Expenses,5034,Revs &Bens,30/10/2013,91792,24.00,Revenue,H M Land Registry,17567
Chorley Borough Council,http://statistics.data.gov.uk/id/local-authority/30UE,Corporate Management,1008,Streetscene & Leisure Contracts,Publicity - Advertising,40157,Miscellaneous Expenses,5034,"1000No Wheelie Bin labels, as per quotation: 94147",04/10/2013,91230,396.00,Revenue,Haslam PrintersLtd,21777
Chorley Borough Council,http://statistics.data.gov.uk/id/local-authority/30UE,Unapportionable Central OHeads,1009,Policy & Performance,Exhibitions & Special Events,40158,Miscellaneous Expenses,5034,"3,000 A6 booklet programmes for Chorley Live event",30/10/2013,91781,564.00,Revenue,Haslam PrintersLtd,21777
Chorley Borough Council,http://statistics.data.gov.uk/id/local-authority/30UE,Democratic Represent and  Mgnt,1007,Governance,Member Development Programme,17007,Indirect Employee Expenses,5002,"Member learning session - Monday 7 October 2013Planning Viability Member Training",16/10/2013,91462,400.00,Revenue,HDH Planning and Development LTD,61780
Chorley Borough Council,http://statistics.data.gov.uk/id/local-authority/30UE,Economic Development,1096,Economic Development,Grants To Other Organisations,40127,Grants and Subscriptions,5031,Starting in Business Grant Payment - Cap Ex,09/10/2013,91293,745.77,Revenue,NAME REDACTED,61775
Chorley Borough Council,http://statistics.data.gov.uk/id/local-authority/30UE,Homelessness,1075,Housing,Miscellaneous Expenses,40200,Miscellaneous Expenses,5034,Chorley Councils contribution to Help the Homeless,18/10/2013,91466,"5,000.00",Revenue,Help The Homeless (Chorley),16716
Chorley Borough Council,http://statistics.data.gov.uk/id/local-authority/30UE,Democratic Represent and  Mgnt,1007,Health Environment & Neighbourhoods,Children's Activities,40188,Miscellaneous Expenses,5034,"Hire of sports facilities during July/August45 hours x 20",09/10/2013,91251,900.00,Revenue,Holy Cross R C High School,18181
Chorley Borough Council,http://statistics.data.gov.uk/id/local-authority/30UE,Economic Development,1096,Economic Development,Grants To Other Organisations,40127,Grants and Subscriptions,5031,Chorley business investement for growth grant,23/10/2013,91564,"5,850.00",Revenue,Inscape Interiors Limited,22374
Chorley Borough Council,http://statistics.data.gov.uk/id/local-authority/30UE,Service Management & Support,1009,Streetscene & Leisure Contracts,Vehicle Trackers,30046,Direct Transport Costs,5016,Yearly lease rental charges for vehicle tracking system for Chorley Council,02/10/2013,91086,795.80,Revenue,Investec Asset Finance Plc,53879
Chorley Borough Council,http://statistics.data.gov.uk/id/local-authority/30UE,Service Management & Support,1009,Streetscene & Leisure Contracts,Vehicle Trackers,30046,Direct Transport Costs,5016,Yearly lease rental charges for vehicle tracking system for Chorley Council,30/10/2013,91588,795.80,Revenue,Investec Asset Finance Plc,53879
Chorley Borough Council,http://statistics.data.gov.uk/id/local-authority/30UE,Community Development,1097,Governance,Premises Related Insurances,20068,Premises Related Insurance,5014,rent due 29/03/13,02/10/2013,91196,"7,218.75",Revenue,J R Keys,17124
Chorley Borough Council,http://statistics.data.gov.uk/id/local-authority/30UE,Service Management & Support,1009,Streetscene & Leisure Contracts,Supplies-Grounds Maintenance,40025,"Equipment, Furniture & Materia",5023,"Supply ZARGES Mastersteps 10 tread Platform Height 2.59m to be delivered to Bengal St Depot.",25/10/2013,91631,497.54,Revenue,Jewsons Limited,17844
Chorley Borough Council,http://statistics.data.gov.uk/id/local-authority/30UE,Service Management & Support,1009,Streetscene & Leisure Contracts,Supplies-Grounds Maintenance,40025,"Equipment, Furniture & Materia",5023,Supply galvanised street name plate post as per previous orders,25/10/2013,91732,847.50,Revenue,Jewsons Limited,17844
Chorley Borough Council,http://statistics.data.gov.uk/id/local-authority/30UE,Service Management & Support,1009,Streetscene & Leisure Contracts,Supplies-Grounds Maintenance,40025,"Equipment, Furniture & Materia",5023,12 tree stakes,30/10/2013,91299,16.20,Revenue,John H Mayor & Sons Ltd,16635
Chorley Borough Council,http://statistics.data.gov.uk/id/local-authority/30UE,Service Management & Support,1009,Streetscene & Leisure Contracts,Supplies-Grounds Maintenance,40025,"Equipment, Furniture & Materia",5023,Supply roll of terrane for Chorley Cem footpaths,30/10/2013,91299,59.81,Revenue,John H Mayor & Sons Ltd,16635
Chorley Borough Council,http://statistics.data.gov.uk/id/local-authority/30UE,Democratic Represent and  Mgnt,1007,Streetscene & Leisure Contracts,Grounds Maintenance Contractor,20043,Grounds Maintenance Costs,5013,30 @ 3.2m x 150mm x 50mm,30/10/2013,91299,194.40,Revenue,John H Mayor & Sons Ltd,16635
Chorley Borough Council,http://statistics.data.gov.uk/id/local-authority/30UE,Democratic Represent and  Mgnt,1007,Streetscene & Leisure Contracts,Grounds Maintenance Contractor,20043,Grounds Maintenance Costs,5013,20 @ 3.2m x 75mm x 75mm,30/10/2013,91299,97.80,Revenue,John H Mayor & Sons Ltd,16635
Chorley Borough Council,http://statistics.data.gov.uk/id/local-authority/30UE,Democratic Represent and  Mgnt,1007,Streetscene & Leisure Contracts,Grounds Maintenance Contractor,20043,Grounds Maintenance Costs,5013,40 @ 1.2m x 75mm x 75mm Birdsmouth,30/10/2013,91299,96.80,Revenue,John H Mayor & Sons Ltd,16635
Chorley Borough Council,http://statistics.data.gov.uk/id/local-authority/30UE,Democratic Represent and  Mgnt,1007,Streetscene & Leisure Contracts,Grounds Maintenance Contractor,20043,Grounds Maintenance Costs,5013,50 of 75mm Kneerail straps,30/10/2013,91299,51.00,Revenue,John H Mayor & Sons Ltd,16635
Chorley Borough Council,http://statistics.data.gov.uk/id/local-authority/30UE,Service Management & Support,1009,Streetscene & Leisure Contracts,Supplies-Grounds Maintenance,40025,"Equipment, Furniture & Materia",5023,Supply 4`` 1`` edging board to be collected plus 150 wooden pegs,30/10/2013,91299,178.50,Revenue,John H Mayor & Sons Ltd,16635
Chorley Borough Council,http://statistics.data.gov.uk/id/local-authority/30UE,Democratic Represent and  Mgnt,1007,Streetscene & Leisure Contracts,Tools & Equipment - Purchase,40003,"Equipment, Furniture & Materia",5023,Set of 12 assorted paint brushes,30/10/2013,91299,6.80,Revenue,John H Mayor & Sons Ltd,16635
Chorley Borough Council,http://statistics.data.gov.uk/id/local-authority/30UE,Democratic Represent and  Mgnt,1007,Streetscene & Leisure Contracts,Tools & Equipment - Purchase,40003,"Equipment, Furniture & Materia",5023,Set of mini rollers and 10 replacement rollers,30/10/2013,91299,2.49,Revenue,John H Mayor & Sons Ltd,16635
Chorley Borough Council,http://statistics.data.gov.uk/id/local-authority/30UE,Democratic Represent and  Mgnt,1007,Streetscene & Leisure Contracts,Tools & Equipment - Purchase,40003,"Equipment, Furniture & Materia",5023,2 x handsaws,30/10/2013,91299,18.62,Revenue,John H Mayor & Sons Ltd,16635
Chorley Borough Council,http://statistics.data.gov.uk/id/local-authority/30UE,Democratic Represent and  Mgnt,1007,Streetscene & Leisure Contracts,Tools & Equipment - Purchase,40003,"Equipment, Furniture & Materia",5023,2 x Spear and jackson spades,30/10/2013,91299,18.62,Revenue,John H Mayor & Sons Ltd,16635
Chorley Borough Council,http://statistics.data.gov.uk/id/local-authority/30UE,Democratic Represent and  Mgnt,1007,Streetscene & Leisure Contracts,Tools & Equipment - Purchase,40003,"Equipment, Furniture & Materia",5023,1 Builders barrow,30/10/2013,91299,25.81,Revenue,John H Mayor & Sons Ltd,16635
Chorley Borough Council,http://statistics.data.gov.uk/id/local-authority/30UE,Democratic Represent and  Mgnt,1007,Streetscene & Leisure Contracts,Grounds Maintenance Contractor,20043,Grounds Maintenance Costs,5013,2 @ 2m x 145mm x 70mm PAR,30/10/2013,91299,18.90,Revenue,John H Mayor & Sons Ltd,16635
Chorley Borough Council,http://statistics.data.gov.uk/id/local-authority/30UE,Democratic Represent and  Mgnt,1007,Streetscene & Leisure Contracts,Grounds Maintenance Contractor,20043,Grounds Maintenance Costs,5013,2 @ 4.2m x 165mm x 45mm PAR,30/10/2013,91299,29.40,Revenue,John H Mayor & Sons Ltd,16635
Chorley Borough Council,http://statistics.data.gov.uk/id/local-authority/30UE,Service Management & Support,1009,Streetscene & Leisure Contracts,Supplies-Grounds Maintenance,40025,"Equipment, Furniture & Materia",5023,Weed control and pegs,30/10/2013,91299,213.95,Revenue,John H Mayor & Sons Ltd,16635
Chorley Borough Council,http://statistics.data.gov.uk/id/local-authority/30UE,Development Control,1091,Planning,Statutory Notices,40160,Miscellaneous Expenses,5034,Planning Public Notices to appear in the Chorley Guardian,02/10/2013,91129,393.81,Revenue,Johnston Publishing Ltd,20072
Chorley Borough Council,http://statistics.data.gov.uk/id/local-authority/30UE,Development Control,1091,Planning,Statutory Notices,40160,Miscellaneous Expenses,5034,Planning Public Notices to appear in the Chorley Guardian,04/10/2013,91259,258.01,Revenue,Johnston Publishing Ltd,20072
Chorley Borough Council,http://statistics.data.gov.uk/id/local-authority/30UE,Development Control,1091,Planning,Statutory Notices,40160,Miscellaneous Expenses,5034,Planning Public Notices to appear in the Chorley Guardian,30/10/2013,91778,258.01,Revenue,Johnston Publishing Ltd,20072
Chorley Borough Council,http://statistics.data.gov.uk/id/local-authority/30UE,Corporate Management,1008,Health Environment & Neighbourhoods,Impounded Dogs Costs,40207,Miscellaneous Expenses,5034,Kennelling fees for 2013/14,25/10/2013,91729,403.50,Revenue,Glencoe Boarding Kennels,16734
Chorley Borough Council,http://statistics.data.gov.uk/id/local-authority/30UE,Corporate Management,1008,Health Environment & Neighbourhoods,Impounded Dogs Costs,40207,Miscellaneous Expenses,5034,Kennelling fees for 2013/14,25/10/2013,91730,632.50,Revenue,Glencoe Boarding Kennels,16734
Chorley Borough Council,http://statistics.data.gov.uk/id/local-authority/30UE,Private Sector HSG Renewal,1073,Housing,Miscellaneous Expenses,40200,Miscellaneous Expenses,5034,Capital Works - Disabled Facility Grant,11/10/2013,91287,"2,997.75",Revenue,K Berry Ltd,16421
Chorley Borough Council,http://statistics.data.gov.uk/id/local-authority/30UE,Private Sector HSG Renewal,1073,Housing,Miscellaneous Expenses,40200,Miscellaneous Expenses,5034,Capital Works - Disabled Facility Grant,11/10/2013,91288,"1,774.50",Revenue,K Berry Ltd,16421
Chorley Borough Council,http://statistics.data.gov.uk/id/local-authority/30UE,Capital,Capital,Housing,Grants,3002,Capital Expenditure,Capital,Capital Works - Disable Facility Grant,18/10/2013,91509,"5,780.00",Capital,K Berry Ltd,16421
Chorley Borough Council,http://statistics.data.gov.uk/id/local-authority/30UE,Corporate Management,1008,Health Environment & Neighbourhoods,Miscellaneous Expenses,40200,Miscellaneous Expenses,5034,Dirty dog campaign for 2013/4,23/10/2013,91636,270.00,Revenue,Karen Chisholm,56874
Chorley Borough Council,http://statistics.data.gov.uk/id/local-authority/30UE,Corporate Management,1008,Health Environment & Neighbourhoods,Miscellaneous Expenses,40200,Miscellaneous Expenses,5034,Dirty dog campaign for 2013/4,23/10/2013,91637,375.00,Revenue,Karen Chisholm,56874
Chorley Borough Council,http://statistics.data.gov.uk/id/local-authority/30UE,Corporate Management,1008,Health Environment & Neighbourhoods,Miscellaneous Expenses,40200,Miscellaneous Expenses,5034,Dirty dog campaign for 2013/4,23/10/2013,91638,300.00,Revenue,Karen Chisholm,56874
Chorley Borough Council,http://statistics.data.gov.uk/id/local-authority/30UE,Corporate Management,1008,Health Environment & Neighbourhoods,Miscellaneous Expenses,40200,Miscellaneous Expenses,5034,Dirty dog campaign for 2013/4,23/10/2013,91639,337.50,Revenue,Karen Chisholm,56874
Chorley Borough Council,http://statistics.data.gov.uk/id/local-authority/30UE,Corporate Management,1008,Health Environment & Neighbourhoods,Miscellaneous Expenses,40200,Miscellaneous Expenses,5034,Dirty dog campaign for 2013/4,23/10/2013,91640,315.00,Revenue,Karen Chisholm,56874
Chorley Borough Council,http://statistics.data.gov.uk/id/local-authority/30UE,Economic Development,1096,Economic Development,Grants To Other Organisations,40127,Grants and Subscriptions,5031,Starting in busines grant,23/10/2013,91571,635.00,Revenue,NAME REDACTED,62045
Chorley Borough Council,http://statistics.data.gov.uk/id/local-authority/30UE,Democratic Represent and  Mgnt,1007,Streetscene & Leisure Contracts,Furniture - Purchase,40012,"Equipment, Furniture & Materia",5023,Left Hand Ergonomic Desk.Del and Inst. W1800mm Oak M25S Desk End Pedestal Del,18/10/2013,91069,950.00,Revenue,Key Industrial Equipment Ltd,16877
Chorley Borough Council,http://statistics.data.gov.uk/id/local-authority/30UE,Corporate Management,1008,Health Environment & Neighbourhoods,Pest Control,20039,Cleaning and Domestic Supplies,5012,FREE box of 10 ficam W sachets.,23/10/2013,91660,759.18,Revenue,Killgerm Chemicals Ltd,16879
Chorley Borough Council,http://statistics.data.gov.uk/id/local-authority/30UE,Economic Development,1096,Economic Development,Grants To Other Organisations,40127,Grants and Subscriptions,5031,Starting in business grant,30/10/2013,91678,750.00,Revenue,Kitchen Design Direct Ltd,62169
Chorley Borough Council,http://statistics.data.gov.uk/id/local-authority/30UE,Control Accounts,Control,Shared Service Arrangement,General Balances,100,Balance Sheet,Balance,October deduction,30/10/2013,91791,980.81,Revenue,Labour Councillors Association,17577
Chorley Borough Council,http://statistics.data.gov.uk/id/local-authority/30UE,Capital,Capital,Housing,Grants,3002,Capital Expenditure,Capital,Capital Works - Disabled Facility Grant,18/10/2013,91510,"2,489.00",Capital,Lancashire County Council,17758
Chorley Borough Council,http://statistics.data.gov.uk/id/local-authority/30UE,Capital,Capital,Housing,Grants,3002,Capital Expenditure,Capital,Capital Works - Disabled Facilty Grant,18/10/2013,91511,"1,446.41",Capital,Lancashire County Council,17758
Chorley Borough Council,http://statistics.data.gov.uk/id/local-authority/30UE,Capital,Capital,Housing,Grants,3002,Capital Expenditure,Capital,Capial Works - Disabled Facility Grant,18/10/2013,91512,"9,430.00",Capital,Lancashire County Council,17758
Chorley Borough Council,http://statistics.data.gov.uk/id/local-authority/30UE,Capital,Capital,Housing,Grants,3002,Capital Expenditure,Capital,Capital Works - Disabled Facility Grant,18/10/2013,91513,"2,040.00",Capital,Lancashire County Council,17758
Chorley Borough Council,http://statistics.data.gov.uk/id/local-authority/30UE,Precepts and Collection Fund,Precepts,Shared Service Arrangement,LCC Precept,2009,Precepts & Collection Fund,Precept,October precept,30/10/2013,91739,"3,601,187.00",Revenue,Lancashire County Council,18386
Chorley Borough Council,http://statistics.data.gov.uk/id/local-authority/30UE,Precepts and Collection Fund,Precepts,Shared Service Arrangement,LCC Precept,2009,Precepts & Collection Fund,Precept,precept sept,30/10/2013,91740,"3,601,187.00",Revenue,Lancashire County Council,18386
Chorley Borough Council,http://statistics.data.gov.uk/id/local-authority/30UE,Collection Fund Revenue Accoun,,Shared Service Arrangement,NNDR County Share,2036,Precepts & Collection Fund,Precept,precept oct,30/10/2013,91743,"234,243.00",Revenue,Lancashire County Council,18386
Chorley Borough Council,http://statistics.data.gov.uk/id/local-authority/30UE,Collection Fund Revenue Accoun,,Shared Service Arrangement,NNDR County Share,2036,Precepts & Collection Fund,Precept,precept sept,30/10/2013,91744,"234,243.00",Revenue,Lancashire County Council,18386
Chorley Borough Council,http://statistics.data.gov.uk/id/local-authority/30UE,Unapportionable Central OHeads,1009,Shared Service Arrangement,Pensions Increase Act Payments,18005,Indirect Employee Expenses,5002,pension,30/10/2013,91812,"18,737.30",Revenue,Lancashire County Council,18386
Chorley Borough Council,http://statistics.data.gov.uk/id/local-authority/30UE,Precepts and Collection Fund,Precepts,Shared Service Arrangement,LPA Precept,2010,Precepts & Collection Fund,Precept,precept sept,30/10/2013,91813,"530,815.00",Revenue,Lancashire Police Authority,17438
Chorley Borough Council,http://statistics.data.gov.uk/id/local-authority/30UE,Precepts and Collection Fund,Precepts,Shared Service Arrangement,LPA Precept,2010,Precepts & Collection Fund,Precept,precept,30/10/2013,91814,"506,815.00",Revenue,Lancashire Police Authority,17438
Chorley Borough Council,http://statistics.data.gov.uk/id/local-authority/30UE,Democratic Represent and  Mgnt,1007,Health Environment & Neighbourhoods,Children's Activities,40188,Miscellaneous Expenses,5034,Delivery of tarmpoline and fun games sessions in September,25/10/2013,91585,443.50,Revenue,Lancashire TAAG,57169
Chorley Borough Council,http://statistics.data.gov.uk/id/local-authority/30UE,Unapportionable Central OHeads,1009,HR & Org. Development,Service Fees,40056,Services,5027,Occupation health,02/10/2013,90762,287.90,Revenue,Lancashire Teaching Hospitals NHS FT,19003
Chorley Borough Council,http://statistics.data.gov.uk/id/local-authority/30UE,Unapportionable Central OHeads,1009,HR & Org. Development,Service Fees,40056,Services,5027,Occupation health,02/10/2013,90762,32.40,Revenue,Lancashire Teaching Hospitals NHS FT,19003
Chorley Borough Council,http://statistics.data.gov.uk/id/local-authority/30UE,Corporate Management,1008,Streetscene & Leisure Contracts,Clinical Waste Collection,50007,Private Contractors,5042,Disposal of clinical waste form Chorley Households. Yellow bag collection ,09/10/2013,91276,925.87,Revenue,Lancashire Teaching Hospitals NHS FT,19003
Chorley Borough Council,http://statistics.data.gov.uk/id/local-authority/30UE,Collection Fund Revenue Accoun,,Shared Service Arrangement,NNDR Fire Share,2037,Precepts & Collection Fund,Precept,Fire precept oct 13,30/10/2013,91741,"26,027.00",Revenue,Lancs Combined Fire Authority,17768
Chorley Borough Council,http://statistics.data.gov.uk/id/local-authority/30UE,Collection Fund Revenue Accoun,,Shared Service Arrangement,NNDR Fire Share,2037,Precepts & Collection Fund,Precept,precept sept,30/10/2013,91742,"26,027.00",Revenue,Lancs Combined Fire Authority,17768
Chorley Borough Council,http://statistics.data.gov.uk/id/local-authority/30UE,Precepts and Collection Fund,Precepts,Shared Service Arrangement,LCFA Precept,2011,Precepts & Collection Fund,Precept,fire precept oct,30/10/2013,91745,"208,454.00",Revenue,Lancs Combined Fire Authority,17768
Chorley Borough Council,http://statistics.data.gov.uk/id/local-authority/30UE,Precepts and Collection Fund,Precepts,Shared Service Arrangement,LCFA Precept,2011,Precepts & Collection Fund,Precept,precept sept,30/10/2013,91746,"208,454.00",Revenue,Lancs Combined Fire Authority,17768
Chorley Borough Council,http://statistics.data.gov.uk/id/local-authority/30UE,Unapportionable Central OHeads,1009,Governance,Professional Fees,40063,Services,5027,Professional Fees Advising in Conference by Telephone Drafting Summary Grounds of Resistance,11/10/2013,91507,"2,000.00",Revenue,Landmark Chambers,56730
Chorley Borough Council,http://statistics.data.gov.uk/id/local-authority/30UE,Parking Services,1066,Streetscene & Leisure Contracts,External Contractors,50008,Private Contractors,5042,enforcement and cash collection for off street car parks.,04/10/2013,91206,"4,729.91",Revenue,Legion Group,21973
Chorley Borough Council,http://statistics.data.gov.uk/id/local-authority/30UE,Local Tax Collection,1010,"Customer, ICT & Transactional",Publications,40054,"Printing, Stationery & General",5026,Ryde on Rating,30/10/2013,91309,299.45,Revenue,Lexis Nexis UK,16688
Chorley Borough Council,http://statistics.data.gov.uk/id/local-authority/30UE,Unapportionable Central OHeads,1009,Governance,Asset Maintenance Fund,20012,Repairs Maintenance & Alts,5005,August 2013 work in progress,02/10/2013,90932,"9,327.12",Revenue,Liberata UK,20716
Chorley Borough Council,http://statistics.data.gov.uk/id/local-authority/30UE,Unapportionable Central OHeads,1009,Governance,External Contractors,50008,Private Contractors,5042,Core and Reactive Service Charge,09/10/2013,91348,"42,320.42",Revenue,Liberata UK,20716
Chorley Borough Council,http://statistics.data.gov.uk/id/local-authority/30UE,Capital,Capital,Governance,Consultants Fees,3025,Capital Expenditure,Capital,Management Fee on Capital Projects,09/10/2013,91348,"5,209.62",Capital,Liberata UK,20716
Chorley Borough Council,http://statistics.data.gov.uk/id/local-authority/30UE,Unapportionable Central OHeads,1009,Governance,Asset Maintenance Fund,20012,Repairs Maintenance & Alts,5005,Pass through work to 30/09/2013,25/10/2013,91573,"9,023.99",Revenue,Liberata UK,20716
Chorley Borough Council,http://statistics.data.gov.uk/id/local-authority/30UE,Unapportionable Central OHeads,1009,Governance,Asset Maintenance Fund,20012,Repairs Maintenance & Alts,5005,Improvement works to 30/09/2013,25/10/2013,91574,"1,724.07",Revenue,Liberata UK,20716
Chorley Borough Council,http://statistics.data.gov.uk/id/local-authority/30UE,Unapportionable Central OHeads,1009,Governance,Asset Maintenance Fund,20012,Repairs Maintenance & Alts,5005,Sept 2013 - Work in progress,25/10/2013,91575,"6,179.60",Revenue,Liberata UK,20716
Chorley Borough Council,http://statistics.data.gov.uk/id/local-authority/30UE,Democratic Represent and  Mgnt,1007,Streetscene & Leisure Contracts,Exhibitions,40176,Miscellaneous Expenses,5034,wall fittings for exhibition,16/10/2013,91539,312.00,Revenue,Lion Picture Framing Supplies Ltd,21731
Chorley Borough Council,http://statistics.data.gov.uk/id/local-authority/30UE,Economic Development,1096,Economic Development,Grants To Other Organisations,40127,Grants and Subscriptions,5031,Starting in Business Grant,09/10/2013,91290,750.00,Revenue,Little Explorers,61781
Chorley Borough Council,http://statistics.data.gov.uk/id/local-authority/30UE,Corporate Management,1008,Shared Service Arrangement,Legal Fees,40171,Miscellaneous Expenses,5034,Legal costs relating to Landsbanki claim,11/10/2013,90989,532.81,Revenue,Local Government Association,16243
Chorley Borough Council,http://statistics.data.gov.uk/id/local-authority/30UE,Corporate Management,1008,Shared Service Arrangement,Legal Fees,40171,Miscellaneous Expenses,5034,Legal costs relating to Landsbanki claim,11/10/2013,90989,103.55,Revenue,Local Government Association,16243
Chorley Borough Council,http://statistics.data.gov.uk/id/local-authority/30UE,Economic Development,1096,Economic Development,Grants To Other Organisations,40127,Grants and Subscriptions,5031,Starting in Business Grant - Cap Ex,09/10/2013,91200,402.81,Revenue,Lucy Mitcham,61684
Chorley Borough Council,http://statistics.data.gov.uk/id/local-authority/30UE,Development Control,1091,Chief Executives Office,Stationery,40050,"Printing, Stationery & General",5026,LYRECO MULTI-PURPOSE WHITE LABELS 199.6 X 143.5MM - BOX OF 200 (WITH SELVEDGE),11/10/2013,91480,0.60,Revenue,Lyreco UK Ltd,17623
Chorley Borough Council,http://statistics.data.gov.uk/id/local-authority/30UE,Development Control,1091,Chief Executives Office,Stationery,40050,"Printing, Stationery & General",5026,Lyreco Multi-Purpose White Labels 99.1 X 38.1Mm - Box Of 1400 (With Selvedge),11/10/2013,91480,0.60,Revenue,Lyreco UK Ltd,17623
Chorley Borough Council,http://statistics.data.gov.uk/id/local-authority/30UE,Development Control,1091,Chief Executives Office,Stationery,40050,"Printing, Stationery & General",5026,C5 Window Envelopes,11/10/2013,91480,30.65,Revenue,Lyreco UK Ltd,17623
Chorley Borough Council,http://statistics.data.gov.uk/id/local-authority/30UE,Unapportionable Central OHeads,1009,Chief Executives Office,Stationery,40050,"Printing, Stationery & General",5026,C5 Window Envelopes,11/10/2013,91480,61.30,Revenue,Lyreco UK Ltd,17623
Chorley Borough Council,http://statistics.data.gov.uk/id/local-authority/30UE,Unapportionable Central OHeads,1009,Chief Executives Office,Stationery,40050,"Printing, Stationery & General",5026,"3.110.545 LYRECO HARD BACK TWIN WIRE NOTEBK A4 	 - PACK OF 5",11/10/2013,91480,28.80,Revenue,Lyreco UK Ltd,17623
Chorley Borough Council,http://statistics.data.gov.uk/id/local-authority/30UE,Unapportionable Central OHeads,1009,Chief Executives Office,Stationery,40050,"Printing, Stationery & General",5026,Lyreco Plain Yellow Sticky Notes 125 X 75Mm - Pack Of 12 Pads,11/10/2013,91480,0.96,Revenue,Lyreco UK Ltd,17623
Chorley Borough Council,http://statistics.data.gov.uk/id/local-authority/30UE,Unapportionable Central OHeads,1009,Chief Executives Office,Stationery,40050,"Printing, Stationery & General",5026,Lyreco Plain Yellow Sticky Notes 50 X 40Mm - Pack Of 12 Pads,11/10/2013,91480,0.28,Revenue,Lyreco UK Ltd,17623
Chorley Borough Council,http://statistics.data.gov.uk/id/local-authority/30UE,Unapportionable Central OHeads,1009,Chief Executives Office,Stationery,40050,"Printing, Stationery & General",5026,Lyreco Plain Yellow Sticky Notes 75 X 75Mm - Pack Of 12 Pads,11/10/2013,91480,1.92,Revenue,Lyreco UK Ltd,17623
Chorley Borough Council,http://statistics.data.gov.uk/id/local-authority/30UE,Unapportionable Central OHeads,1009,Chief Executives Office,Stationery,40050,"Printing, Stationery & General",5026,BX 5000 Lyreco Staples 26/6,11/10/2013,91480,0.09,Revenue,Lyreco UK Ltd,17623
Chorley Borough Council,http://statistics.data.gov.uk/id/local-authority/30UE,Unapportionable Central OHeads,1009,Chief Executives Office,Stationery,40050,"Printing, Stationery & General",5026,Lyreco Bullet Tip Assorted Colour Permanent Markers - Wallet Of 4,11/10/2013,91480,5.02,Revenue,Lyreco UK Ltd,17623
Chorley Borough Council,http://statistics.data.gov.uk/id/local-authority/30UE,Unapportionable Central OHeads,1009,Chief Executives Office,Stationery,40050,"Printing, Stationery & General",5026,LYRECO BUDGET ORANGE HIGHLIGHTERS - PACK OF 10,11/10/2013,91480,0.30,Revenue,Lyreco UK Ltd,17623
Chorley Borough Council,http://statistics.data.gov.uk/id/local-authority/30UE,Unapportionable Central OHeads,1009,Chief Executives Office,Stationery,40050,"Printing, Stationery & General",5026,Lyreco Green Highlighters - Pack Of 10,11/10/2013,91480,0.30,Revenue,Lyreco UK Ltd,17623
Chorley Borough Council,http://statistics.data.gov.uk/id/local-authority/30UE,Unapportionable Central OHeads,1009,Chief Executives Office,Stationery,40050,"Printing, Stationery & General",5026,Lyreco Pink Highlighters - Pack Of 10,11/10/2013,91480,0.30,Revenue,Lyreco UK Ltd,17623
Chorley Borough Council,http://statistics.data.gov.uk/id/local-authority/30UE,Unapportionable Central OHeads,1009,Chief Executives Office,Stationery,40050,"Printing, Stationery & General",5026,Lyreco Yellow Highlighters - Pack Of 10,11/10/2013,91480,0.40,Revenue,Lyreco UK Ltd,17623
Chorley Borough Council,http://statistics.data.gov.uk/id/local-authority/30UE,Unapportionable Central OHeads,1009,Chief Executives Office,Stationery,40050,"Printing, Stationery & General",5026,Sponge Dampener,11/10/2013,91480,20.48,Revenue,Lyreco UK Ltd,17623
Chorley Borough Council,http://statistics.data.gov.uk/id/local-authority/30UE,Democratic Represent and  Mgnt,1007,Chief Executives Office,Stationery,40050,"Printing, Stationery & General",5026,Telephone Message pad,11/10/2013,91480,8.99,Revenue,Lyreco UK Ltd,17623
Chorley Borough Council,http://statistics.data.gov.uk/id/local-authority/30UE,Service Management & Support,1009,Chief Executives Office,Supplies-Grounds Maintenance,40025,"Equipment, Furniture & Materia",5023,Black Inkjet Cartridge 2 pack,11/10/2013,91480,39.27,Revenue,Lyreco UK Ltd,17623
Chorley Borough Council,http://statistics.data.gov.uk/id/local-authority/30UE,Service Management & Support,1009,Chief Executives Office,Supplies-Grounds Maintenance,40025,"Equipment, Furniture & Materia",5023,Tri colour inkjet cartridge,11/10/2013,91480,16.01,Revenue,Lyreco UK Ltd,17623
Chorley Borough Council,http://statistics.data.gov.uk/id/local-authority/30UE,Democratic Represent and  Mgnt,1007,Chief Executives Office,Stationery,40050,"Printing, Stationery & General",5026,Black Ink Cartridge HP940XL - C4906A,11/10/2013,91480,63.14,Revenue,Lyreco UK Ltd,17623
Chorley Borough Council,http://statistics.data.gov.uk/id/local-authority/30UE,Democratic Represent and  Mgnt,1007,Chief Executives Office,Stationery,40050,"Printing, Stationery & General",5026,Cyan Ink Cartridge HP940 XL,11/10/2013,91480,41.58,Revenue,Lyreco UK Ltd,17623
Chorley Borough Council,http://statistics.data.gov.uk/id/local-authority/30UE,Democratic Represent and  Mgnt,1007,Chief Executives Office,Computer Consumables,40099,Communication and Computing,5028,HP 940XL C4909A I/JET CART OFFICEJET YLW,11/10/2013,91480,41.58,Revenue,Lyreco UK Ltd,17623
Chorley Borough Council,http://statistics.data.gov.uk/id/local-authority/30UE,Democratic Represent and  Mgnt,1007,Chief Executives Office,Stationery,40050,"Printing, Stationery & General",5026,Magenta Ink Cartridge HP940 XL,11/10/2013,91480,41.58,Revenue,Lyreco UK Ltd,17623
Chorley Borough Council,http://statistics.data.gov.uk/id/local-authority/30UE,Unapportionable Central OHeads,1009,Chief Executives Office,Stationery,40050,"Printing, Stationery & General",5026,FOCUS FINE POINT BALL PEN BLACK - BOX OF 50,11/10/2013,91480,2.00,Revenue,Lyreco UK Ltd,17623
Chorley Borough Council,http://statistics.data.gov.uk/id/local-authority/30UE,Elections,1012,Governance,Tools & Equipment - Maintenance,40005,"Equipment, Furniture & Materia",5023,Service electronic letter opner,23/10/2013,91590,306.50,Revenue,Mailopeners,20435
Chorley Borough Council,http://statistics.data.gov.uk/id/local-authority/30UE,Unapportionable Central OHeads,1009,Policy & Performance,Exhibitions & Special Events,40158,Miscellaneous Expenses,5034,The Maniax static show for the picnic in the park,02/10/2013,90671,710.00,Revenue,Markmark Produtions,19864
Chorley Borough Council,http://statistics.data.gov.uk/id/local-authority/30UE,Service Management & Support,1009,Streetscene & Leisure Contracts,External Contractor,40198,Miscellaneous Expenses,5034,"Paint 2No. entrance gates, adjacent side gates, 2No plaques at Church of St Laurence",11/10/2013,91396,758.00,Revenue,Mather & Ellis Ltd,58150
Chorley Borough Council,http://statistics.data.gov.uk/id/local-authority/30UE,Corporate Management,1008,HR & Org. Development,Agency Staff,13000,Direct Employee Expenses,5001,Environmental Health Officer ,02/10/2013,91054,323.18,Revenue,Matrix SCM Ltd,22128
Chorley Borough Council,http://statistics.data.gov.uk/id/local-authority/30UE,Central Support Services,1009,HR & Org. Development,Agency Staff,13000,Direct Employee Expenses,5001,Economic Development Assistant,02/10/2013,91054,315.24,Revenue,Matrix SCM Ltd,22128
Chorley Borough Council,http://statistics.data.gov.uk/id/local-authority/30UE,Corporate Management,1008,HR & Org. Development,Agency Staff,13000,Direct Employee Expenses,5001,Environmental Health Officer ,02/10/2013,91134,2.58,Revenue,Matrix SCM Ltd,22128
Chorley Borough Council,http://statistics.data.gov.uk/id/local-authority/30UE,Corporate Management,1008,HR & Org. Development,Agency Staff,13000,Direct Employee Expenses,5001,Environmental Health Officer ,02/10/2013,91134,323.18,Revenue,Matrix SCM Ltd,22128
Chorley Borough Council,http://statistics.data.gov.uk/id/local-authority/30UE,Central Support Services,1009,HR & Org. Development,Agency Staff,13000,Direct Employee Expenses,5001,Economic Development Assistant,02/10/2013,91134,394.05,Revenue,Matrix SCM Ltd,22128
Chorley Borough Council,http://statistics.data.gov.uk/id/local-authority/30UE,Corporate Management,1008,HR & Org. Development,Agency Staff,13000,Direct Employee Expenses,5001,Environmental Health Officer ,11/10/2013,91198,8.60,Revenue,Matrix SCM Ltd,22128
Chorley Borough Council,http://statistics.data.gov.uk/id/local-authority/30UE,Corporate Management,1008,HR & Org. Development,Agency Staff,13000,Direct Employee Expenses,5001,Environmental Health Officer ,11/10/2013,91198,323.18,Revenue,Matrix SCM Ltd,22128
Chorley Borough Council,http://statistics.data.gov.uk/id/local-authority/30UE,Central Support Services,1009,HR & Org. Development,Agency Staff,13000,Direct Employee Expenses,5001,Economic Development Assistant,11/10/2013,91198,290.78,Revenue,Matrix SCM Ltd,22128
Chorley Borough Council,http://statistics.data.gov.uk/id/local-authority/30UE,Corporate Management,1008,HR & Org. Development,Agency Staff,13000,Direct Employee Expenses,5001,Environmental Health Officer ,16/10/2013,91398,5.16,Revenue,Matrix SCM Ltd,22128
Chorley Borough Council,http://statistics.data.gov.uk/id/local-authority/30UE,Corporate Management,1008,HR & Org. Development,Agency Staff,13000,Direct Employee Expenses,5001,Environmental Health Officer ,16/10/2013,91398,321.01,Revenue,Matrix SCM Ltd,22128
Chorley Borough Council,http://statistics.data.gov.uk/id/local-authority/30UE,Central Support Services,1009,HR & Org. Development,Agency Staff,13000,Direct Employee Expenses,5001,Economic Development Assistant,16/10/2013,91398,394.05,Revenue,Matrix SCM Ltd,22128
Chorley Borough Council,http://statistics.data.gov.uk/id/local-authority/30UE,Corporate Management,1008,HR & Org. Development,Agency Staff,13000,Direct Employee Expenses,5001,Environmental Health Officer ,18/10/2013,91558,1.29,Revenue,Matrix SCM Ltd,22128
Chorley Borough Council,http://statistics.data.gov.uk/id/local-authority/30UE,Corporate Management,1008,HR & Org. Development,Agency Staff,13000,Direct Employee Expenses,5001,Environmental Health Officer ,18/10/2013,91558,"4,567.92",Revenue,Matrix SCM Ltd,22128
Chorley Borough Council,http://statistics.data.gov.uk/id/local-authority/30UE,Central Support Services,1009,HR & Org. Development,Agency Staff,13000,Direct Employee Expenses,5001,Economic Development Assistant,18/10/2013,91558,"1,345.89",Revenue,Matrix SCM Ltd,22128
Chorley Borough Council,http://statistics.data.gov.uk/id/local-authority/30UE,Central Support Services,1009,HR & Org. Development,Agency Staff,13000,Direct Employee Expenses,5001,Economic Development Assistant,18/10/2013,91558,"2,536.03",Revenue,Matrix SCM Ltd,22128
Chorley Borough Council,http://statistics.data.gov.uk/id/local-authority/30UE,Housing Benefit Administration,1077,HR & Org. Development,Agency Staff,13000,Direct Employee Expenses,5001,Benefits Officer,18/10/2013,91558,559.21,Revenue,Matrix SCM Ltd,22128
Chorley Borough Council,http://statistics.data.gov.uk/id/local-authority/30UE,Corporate Management,1008,HR & Org. Development,Agency Staff,13000,Direct Employee Expenses,5001,Public Protection Officer,18/10/2013,91558,510.51,Revenue,Matrix SCM Ltd,22128
Chorley Borough Council,http://statistics.data.gov.uk/id/local-authority/30UE,Unapportionable Central OHeads,1009,HR & Org. Development,Refreshments,40036,Catering,5024,Purchase and administering 60 flu vaccinations to staff,16/10/2013,91470,865.00,Revenue,MedicX Pharmacy (Rotherham) Ltd,61464
Chorley Borough Council,http://statistics.data.gov.uk/id/local-authority/30UE,Economic Development,1096,Economic Development,Grants To Other Organisations,40127,Grants and Subscriptions,5031,Shop floor improvement grant,23/10/2013,91565,"6,570.53",Revenue,Milestone Catering Ltd t/a The Coffee Club,62046
Chorley Borough Council,http://statistics.data.gov.uk/id/local-authority/30UE,Business Support,1095,Economic Development,Asset Maintenance Fund,20012,Repairs Maintenance & Alts,5005,1st and final payment,23/10/2013,91565,"2,000.00",Revenue,Milestone Catering Ltd t/a The Coffee Club,62046
Chorley Borough Council,http://statistics.data.gov.uk/id/local-authority/30UE,Democratic Represent and  Mgnt,1007,Streetscene & Leisure Contracts,Grounds Maintenance Contractor,20043,Grounds Maintenance Costs,5013,"RESERVOIRS ACT 1975 - BIRKACRE RESERVOIRProposal for Consultancy Services",02/10/2013,90593,"6,500.00",Revenue,Mott Macdonald Ltd,16200
Chorley Borough Council,http://statistics.data.gov.uk/id/local-authority/30UE,Service Management & Support,1009,Streetscene & Leisure Contracts,External Contractor,40198,Miscellaneous Expenses,5034,Footpath Drumhead Road grave- Adlington Cemetery,25/10/2013,91553,100.00,Revenue,NAME REDACTED,16710
Chorley Borough Council,http://statistics.data.gov.uk/id/local-authority/30UE,Service Management & Support,1009,Streetscene & Leisure Contracts,External Contractor,40198,Miscellaneous Expenses,5034,"Footpath Drumhead Road grave- Adlington Cemetery",25/10/2013,91553,300.00,Revenue,NAME REDACTED,16710
Chorley Borough Council,http://statistics.data.gov.uk/id/local-authority/30UE,Service Management & Support,1009,Streetscene & Leisure Contracts,External Contractor,40198,Miscellaneous Expenses,5034,Work completed at Highways Ave ( extension of a footpath),30/10/2013,91720,420.00,Revenue,NAME REDACTED,16710
Chorley Borough Council,http://statistics.data.gov.uk/id/local-authority/30UE,Service Management & Support,1009,Streetscene & Leisure Contracts,External Contractor,40198,Miscellaneous Expenses,5034,Work completed at Highways Ave ( extension of a footpath),30/10/2013,91720,200.00,Revenue,NAME REDACTED,16710
Chorley Borough Council,http://statistics.data.gov.uk/id/local-authority/30UE,Development Control,1091,Planning,Refunds,40220,Miscellaneous Expenses,5034,Refund of planning application 13/00512/FUL,18/10/2013,91514,385.00,Revenue,NAME REDACTED,61004
Chorley Borough Council,http://statistics.data.gov.uk/id/local-authority/30UE,Economic Development,1096,Economic Development,Grants To Other Organisations,40127,Grants and Subscriptions,5031,Business rates subsidy 2nd tranche payment,23/10/2013,91566,782.00,Revenue,NAME REDACTED,59992
Chorley Borough Council,http://statistics.data.gov.uk/id/local-authority/30UE,Service Management & Support,1009,Streetscene & Leisure Contracts,Hire Of Transport,30028,Contrct Hire & Operating Lease,5018,"Supply 1 x Turf Cutter for 4 daysSupply 1 x Rotovator for 4 daysSupply maintenance and parts to John Deere 900 ",16/10/2013,91536,455.00,Revenue,MW Grass Machinery,21616
Chorley Borough Council,http://statistics.data.gov.uk/id/local-authority/30UE,Unapportionable Central OHeads,1009,Chief Executives Office,Tools & Equipment - Lease,40006,"Equipment, Furniture & Materia",5023,"Quarterly Rental on One Jet+250 Franking Machine, Serial No. N1159615 and One Jet+250 2kg Scale Serial No. ",04/10/2013,91182,"1,009.25",Revenue,Nationwide Capital Finance Ltd,21739
Chorley Borough Council,http://statistics.data.gov.uk/id/local-authority/30UE,Service Management & Support,1009,Shared Service Arrangement,Vehicle Maintenance,30045,Direct Transport Costs,5016,card charges,30/10/2013,91806,11.79,Revenue,Natwest Streamline,16690
Chorley Borough Council,http://statistics.data.gov.uk/id/local-authority/30UE,Service Management & Support,1009,Shared Service Arrangement,Vehicle Maintenance,30045,Direct Transport Costs,5016,card charges,30/10/2013,91806,845.77,Revenue,Natwest Streamline,16690
Chorley Borough Council,http://statistics.data.gov.uk/id/local-authority/30UE,Service Management & Support,1009,Shared Service Arrangement,Vehicle Maintenance,30045,Direct Transport Costs,5016,card charges,30/10/2013,91807,628.37,Revenue,Natwest Streamline,16690
Chorley Borough Council,http://statistics.data.gov.uk/id/local-authority/30UE,Service Management & Support,1009,Shared Service Arrangement,Vehicle Maintenance,30045,Direct Transport Costs,5016,card charges,30/10/2013,91808,463.56,Revenue,Natwest Streamline,16690
Chorley Borough Council,http://statistics.data.gov.uk/id/local-authority/30UE,Unapportionable Central OHeads,1009,Shared Service Arrangement,Escrow,40108,Communication and Computing,5028,Escrow Agreement,20/09/2013,89890,500.00,Revenue,NCC Services Ltd,16608
Chorley Borough Council,http://statistics.data.gov.uk/id/local-authority/30UE,Unapportionable Central OHeads,1009,Shared Service Arrangement,Escrow,40108,Communication and Computing,5028,Escrow Agreement,20/09/2013,90958,500.00,Revenue,NCC Services Ltd,16608
Chorley Borough Council,http://statistics.data.gov.uk/id/local-authority/30UE,Democratic Represent and  Mgnt,1007,Governance,Other Fees,40212,Miscellaneous Expenses,5034,"Photography of the Lancastrian Suite, interior of Town Hall and three portrait shots.",25/10/2013,91704,250.00,Revenue,Neil White,61873
Chorley Borough Council,http://statistics.data.gov.uk/id/local-authority/30UE,Unapportionable Central OHeads,1009,Policy & Performance,Exhibitions & Special Events,40158,Miscellaneous Expenses,5034,Advert in the Chorley Citizen for Chorley Picnic in the Park,30/10/2013,91264,294.00,Revenue,Newsquest (Lancashire) Limited,18117
Chorley Borough Council,http://statistics.data.gov.uk/id/local-authority/30UE,Service Management & Support,1009,Streetscene & Leisure Contracts,Supplies & Consumables -Street Cleansing,40235,"Equipment, Furniture & Materia",5023,Supply brushes as on delivery note number 9187 already supplied,16/10/2013,91436,372.12,Revenue,Northern Municipal Spares Ltd,17752
Chorley Borough Council,http://statistics.data.gov.uk/id/local-authority/30UE,Service Management & Support,1009,Streetscene & Leisure Contracts,Hire Of Transport,30028,Contrct Hire & Operating Lease,5018,Hire of Ford Transit tipper Reg NJ10OTK ,30/10/2013,91376,394.29,Revenue,Northgate Vehicle Hire (NW) Ltd,17360
Chorley Borough Council,http://statistics.data.gov.uk/id/local-authority/30UE,Service Management & Support,1009,Streetscene & Leisure Contracts,Hire Of Transport,30028,Contrct Hire & Operating Lease,5018,Hire of Ford Transit tipper NJ10OVN ,30/10/2013,91376,394.29,Revenue,Northgate Vehicle Hire (NW) Ltd,17360
Chorley Borough Council,http://statistics.data.gov.uk/id/local-authority/30UE,Service Management & Support,1009,Streetscene & Leisure Contracts,Hire Of Transport,30028,Contrct Hire & Operating Lease,5018,Hire of Ford Transit tipper Reg NJ10OXG ,30/10/2013,91376,394.29,Revenue,Northgate Vehicle Hire (NW) Ltd,17360
Chorley Borough Council,http://statistics.data.gov.uk/id/local-authority/30UE,Service Management & Support,1009,Streetscene & Leisure Contracts,Hire Of Transport,30028,Contrct Hire & Operating Lease,5018,Hire of Ford Transit tipper Reg NJ60 KFK ,30/10/2013,91376,400.46,Revenue,Northgate Vehicle Hire (NW) Ltd,17360
Chorley Borough Council,http://statistics.data.gov.uk/id/local-authority/30UE,Service Management & Support,1009,Streetscene & Leisure Contracts,Hire Of Transport,30028,Contrct Hire & Operating Lease,5018,Hire of Ford Transit Crewcab tipper Reg NL12 OFG,30/10/2013,91376,505.71,Revenue,Northgate Vehicle Hire (NW) Ltd,17360
Chorley Borough Council,http://statistics.data.gov.uk/id/local-authority/30UE,Service Management & Support,1009,Streetscene & Leisure Contracts,Hire Of Transport,30028,Contrct Hire & Operating Lease,5018,Hire of Ford Transit tipper Reg No NL12ONR ,30/10/2013,91376,505.71,Revenue,Northgate Vehicle Hire (NW) Ltd,17360
Chorley Borough Council,http://statistics.data.gov.uk/id/local-authority/30UE,Corporate Management,1008,Streetscene & Leisure Contracts,Hire Of Transport,30028,Contrct Hire & Operating Lease,5018,Hire ot Peugeot Panter van Reg NV60 BVF ,30/10/2013,91376,233.61,Revenue,Northgate Vehicle Hire (NW) Ltd,17360
Chorley Borough Council,http://statistics.data.gov.uk/id/local-authority/30UE,Corporate Management,1008,Streetscene & Leisure Contracts,Hire Of Transport,30028,Contrct Hire & Operating Lease,5018,Hire of PeugeotPartner van Reg NX62 UCS ,30/10/2013,91376,233.61,Revenue,Northgate Vehicle Hire (NW) Ltd,17360
Chorley Borough Council,http://statistics.data.gov.uk/id/local-authority/30UE,Democratic Represent and  Mgnt,1007,Streetscene & Leisure Contracts,Hire Of Transport,30028,Contrct Hire & Operating Lease,5018,Hire of Ford Transit crew cab Reg NK13YPT ,30/10/2013,91376,492.86,Revenue,Northgate Vehicle Hire (NW) Ltd,17360
Chorley Borough Council,http://statistics.data.gov.uk/id/local-authority/30UE,Democratic Represent and  Mgnt,1007,Streetscene & Leisure Contracts,Hire Of Transport,30028,Contrct Hire & Operating Lease,5018,BV60 KFK,30/10/2013,91376,10.33,Revenue,Northgate Vehicle Hire (NW) Ltd,17360
Chorley Borough Council,http://statistics.data.gov.uk/id/local-authority/30UE,Democratic Represent and  Mgnt,1007,Chief Executives Office,Electricity,20013,Energy Costs,5006,Tatton Recreation Grounds,09/10/2013,90927,167.20,Revenue,Npower Commercial Gas,16814
Chorley Borough Council,http://statistics.data.gov.uk/id/local-authority/30UE,Democratic Represent and  Mgnt,1007,Chief Executives Office,Electricity,20013,Energy Costs,5006,Astley Hall,09/10/2013,90927,298.53,Revenue,Npower Commercial Gas,16814
Chorley Borough Council,http://statistics.data.gov.uk/id/local-authority/30UE,Democratic Represent and  Mgnt,1007,Chief Executives Office,Electricity,20013,Energy Costs,5006,Yarrow Valley Country Park,09/10/2013,90927,463.31,Revenue,Npower Commercial Gas,16814
Chorley Borough Council,http://statistics.data.gov.uk/id/local-authority/30UE,Community Development,1097,Chief Executives Office,Electricity,20013,Energy Costs,5006,Top floor informaton and advice centre,09/10/2013,90927,"1,205.62",Revenue,Npower Commercial Gas,16814
Chorley Borough Council,http://statistics.data.gov.uk/id/local-authority/30UE,Democratic Represent and  Mgnt,1007,Chief Executives Office,Electricity,20013,Energy Costs,5006,Astley Hall Coach House,09/10/2013,90927,"1,977.70",Revenue,Npower Commercial Gas,16814
Chorley Borough Council,http://statistics.data.gov.uk/id/local-authority/30UE,Corporate Management,1008,Chief Executives Office,Electricity,20013,Energy Costs,5006,"Cemeteries Office, Grave Diggers Mees Rm",09/10/2013,90927,130.07,Revenue,Npower Commercial Gas,16814
Chorley Borough Council,http://statistics.data.gov.uk/id/local-authority/30UE,Corporate Management,1008,Chief Executives Office,Electricity,20013,Energy Costs,5006,"Cemeteries Office, Grave Diggers Mess Rm",09/10/2013,90927,161.84,Revenue,Npower Commercial Gas,16814
Chorley Borough Council,http://statistics.data.gov.uk/id/local-authority/30UE,Corporate Management,1008,Chief Executives Office,Electricity,20013,Energy Costs,5006,"Cemeteries Office, Grave Diggers Mess Rm",09/10/2013,90927,219.75,Revenue,Npower Commercial Gas,16814
Chorley Borough Council,http://statistics.data.gov.uk/id/local-authority/30UE,Corporate Management,1008,Chief Executives Office,Electricity,20013,Energy Costs,5006,"Cemeteries Office, Grave Diggers Mess Rm",09/10/2013,90927,142.03,Revenue,Npower Commercial Gas,16814
Chorley Borough Council,http://statistics.data.gov.uk/id/local-authority/30UE,Corporate Management,1008,Chief Executives Office,Electricity,20013,Energy Costs,5006,"Cemeteries Office, Grave Diggers Mess Rm",09/10/2013,90927,182.82,Revenue,Npower Commercial Gas,16814
Chorley Borough Council,http://statistics.data.gov.uk/id/local-authority/30UE,Corporate Management,1008,Chief Executives Office,Electricity,20013,Energy Costs,5006,"Cemeteries Office, Grave Diggers Mess Rm",09/10/2013,90927,59.59,Revenue,Npower Commercial Gas,16814
Chorley Borough Council,http://statistics.data.gov.uk/id/local-authority/30UE,Corporate Management,1008,Chief Executives Office,Electricity,20013,Energy Costs,5006,"Cemeteries Office, Grave Diggers Mess Rm",09/10/2013,90927,102.59,Revenue,Npower Commercial Gas,16814
Chorley Borough Council,http://statistics.data.gov.uk/id/local-authority/30UE,Corporate Management,1008,Chief Executives Office,Electricity,20013,Energy Costs,5006,"Cemeteries Office, Grave Diggers Mess Rm",09/10/2013,90927,261.37,Revenue,Npower Commercial Gas,16814
Chorley Borough Council,http://statistics.data.gov.uk/id/local-authority/30UE,Democratic Represent and  Mgnt,1007,Chief Executives Office,Electricity,20013,Energy Costs,5006,Astley Park changing Rooms,09/10/2013,90927,626.41,Revenue,Npower Commercial Gas,16814
Chorley Borough Council,http://statistics.data.gov.uk/id/local-authority/30UE,Economic Development,1096,Chief Executives Office,Electricity,20013,Energy Costs,5006,"Market Compactor, Refuse Disposal Unit",09/10/2013,90927,117.34,Revenue,Npower Commercial Gas,16814
Chorley Borough Council,http://statistics.data.gov.uk/id/local-authority/30UE,Democratic Represent and  Mgnt,1007,Chief Executives Office,Electricity,20013,Energy Costs,5006,King George V Playing Fields - changing rooms,09/10/2013,90927,40.38,Revenue,Npower Commercial Gas,16814
Chorley Borough Council,http://statistics.data.gov.uk/id/local-authority/30UE,Unapportionable Central OHeads,1009,Chief Executives Office,Electricity,20013,Energy Costs,5006,Civic Offices,09/10/2013,90927,"2,837.51",Revenue,Npower Commercial Gas,16814
Chorley Borough Council,http://statistics.data.gov.uk/id/local-authority/30UE,Unapportionable Central OHeads,1009,Chief Executives Office,Electricity,20013,Energy Costs,5006,Bengal Street,09/10/2013,90927,505.29,Revenue,Npower Commercial Gas,16814
Chorley Borough Council,http://statistics.data.gov.uk/id/local-authority/30UE,Unapportionable Central OHeads,1009,Chief Executives Office,Electricity,20013,Energy Costs,5006,Town Hall,09/10/2013,90927,"1,548.81",Revenue,Npower Commercial Gas,16814
Chorley Borough Council,http://statistics.data.gov.uk/id/local-authority/30UE,Homelessness,1075,Chief Executives Office,Electricity,20013,Energy Costs,5006,Cotswold House Two Storey Wing,09/10/2013,90927,515.62,Revenue,Npower Commercial Gas,16814
Chorley Borough Council,http://statistics.data.gov.uk/id/local-authority/30UE,Parking Services,1066,Chief Executives Office,Electricity,20013,Energy Costs,5006,Un-metered Car Park Lighting,23/10/2013,91467,875.38,Revenue,Npower Commercial Gas,16814
Chorley Borough Council,http://statistics.data.gov.uk/id/local-authority/30UE,Parking Services,1066,Chief Executives Office,Electricity,20013,Energy Costs,5006,Un-metered - Pay and Display Machines,23/10/2013,91467,95.33,Revenue,Npower Commercial Gas,16814
Chorley Borough Council,http://statistics.data.gov.uk/id/local-authority/30UE,Culture & Heritage,1036,Chief Executives Office,Electricity,20013,Energy Costs,5006,Un-metered CCTV Cameras,23/10/2013,91467,234.98,Revenue,Npower Commercial Gas,16814
Chorley Borough Council,http://statistics.data.gov.uk/id/local-authority/30UE,Democratic Represent and  Mgnt,1007,Streetscene & Leisure Contracts,Children's Activities,40188,Miscellaneous Expenses,5034,4 x Gopak economy folding tables 1830 x 610 x 698 Walnut Product code 33004W,09/10/2013,91321,356.00,Revenue,Office Furniture Online,60744
Chorley Borough Council,http://statistics.data.gov.uk/id/local-authority/30UE,Local Tax Collection,1010,"Customer, ICT & Transactional",Stationery,40050,"Printing, Stationery & General",5026,"90gsm White Opaque. Gummed flaps. Window 45x90mm. Position 20mm inlhs  60mm up. Printed Black on face, flap ",18/10/2013,91498,276.60,Revenue,Opal Envelopes Ltd,19356
Chorley Borough Council,http://statistics.data.gov.uk/id/local-authority/30UE,Unapportionable Central OHeads,1009,"Customer, ICT & Transactional",ICT Software Implementation,40114,Communication and Computing,5028,"Attain Software - Set Up Payment due immediately Includes set up and monthly usage up to 31 March 2014",11/10/2013,91373,"3,565.00",Revenue,Parker Sandford Ltd,61771
Chorley Borough Council,http://statistics.data.gov.uk/id/local-authority/30UE,Service Management & Support,1009,Streetscene & Leisure Contracts,Supplies-Grounds Maintenance,40025,"Equipment, Furniture & Materia",5023,"13,500 various colours Polyanthus",16/10/2013,91540,"1,689.00",Revenue,Pentland Plants,16366
Chorley Borough Council,http://statistics.data.gov.uk/id/local-authority/30UE,Corporate Management,1008,Health Environment & Neighbourhoods,External Contractor,40198,Miscellaneous Expenses,5034,50 weeks @ 330.00 for 2013/14,04/10/2013,91224,311.75,Revenue,NAME REDACTED,16727
Chorley Borough Council,http://statistics.data.gov.uk/id/local-authority/30UE,Corporate Management,1008,Health Environment & Neighbourhoods,External Contractor,40198,Miscellaneous Expenses,5034,50 weeks @ 330.00 for 2013/14,11/10/2013,91461,311.75,Revenue,NAME REDACTED,16727
Chorley Borough Council,http://statistics.data.gov.uk/id/local-authority/30UE,Corporate Management,1008,Health Environment & Neighbourhoods,External Contractor,40198,Miscellaneous Expenses,5034,50 weeks @ 330.00 for 2013/14,23/10/2013,91628,311.75,Revenue,NAME REDACTED,16727
Chorley Borough Council,http://statistics.data.gov.uk/id/local-authority/30UE,Corporate Management,1008,Health Environment & Neighbourhoods,External Contractor,40198,Miscellaneous Expenses,5034,50 weeks @ 330.00 for 2013/14,25/10/2013,91698,311.75,Revenue,NAME REDACTED,16727
Chorley Borough Council,http://statistics.data.gov.uk/id/local-authority/30UE,Corporate Management,1008,Health Environment & Neighbourhoods,External Contractor,40198,Miscellaneous Expenses,5034,50 weeks @ 330.00 for 2013/14,30/10/2013,91754,311.75,Revenue,NAME REDACTED,16727
Chorley Borough Council,http://statistics.data.gov.uk/id/local-authority/30UE,Service Management & Support,1009,Streetscene & Leisure Contracts,Vehicle Excise Duty,30012,Direct Transport Costs,5016,DK56 JWL,30/10/2013,91815,165.00,Revenue,Post Office Counters Ltd,16191
Chorley Borough Council,http://statistics.data.gov.uk/id/local-authority/30UE,Service Management & Support,1009,Streetscene & Leisure Contracts,Vehicle Excise Duty,30012,Direct Transport Costs,5016,DK56 JWO,30/10/2013,91815,165.00,Revenue,Post Office Counters Ltd,16191
Chorley Borough Council,http://statistics.data.gov.uk/id/local-authority/30UE,Unapportionable Central OHeads,1009,Health Environment & Neighbourhoods,Photocopier Consumables,40049,"Printing, Stationery & General",5026,"Evolution Everyday A4 80gsm, Box 2500",25/10/2013,91616,454.00,Revenue,Premier Paper Group,54451
Chorley Borough Council,http://statistics.data.gov.uk/id/local-authority/30UE,Unapportionable Central OHeads,1009,Shared Service Arrangement,Refreshments,40036,Catering,5024,Water bottles and plastic cups,11/10/2013,91351,273.29,Revenue,Pressure Coolers Ltd T/A Maestro International Ltd,19767
Chorley Borough Council,http://statistics.data.gov.uk/id/local-authority/30UE,Private Sector HSG Renewal,1073,Housing,External Contractor,40198,Miscellaneous Expenses,5034,Quarter 3,11/10/2013,91240,"7,500.00",Revenue,Preston Care and Repair,50018
Chorley Borough Council,http://statistics.data.gov.uk/id/local-authority/30UE,Elections,1012,Governance,Printing,40043,"Printing, Stationery & General",5026,"48000 Household canvass forms, 23000 Household canvass forms, 14000 Household canvass forms, final reminder",30/10/2013,91782,"7,106.17",Revenue,Print Image Network,21171
Chorley Borough Council,http://statistics.data.gov.uk/id/local-authority/30UE,Homelessness,1075,Housing,External Contractor,40198,Miscellaneous Expenses,5034,"Concierge service at Cotswold Supported Housing, Cotswold Road, Chorley, Lancashire. PR7 3HW. ",18/10/2013,91438,"4,338.31",Revenue,Profile Security Ltd,58000
Chorley Borough Council,http://statistics.data.gov.uk/id/local-authority/30UE,Homelessness,1075,Housing,External Contractor,40198,Miscellaneous Expenses,5034,"Concierge service at Cotswold Supported Housing, Cotswold Road, Chorley, Lancashire. PR7 3HW. ",23/10/2013,91602,"4,386.93",Revenue,Profile Security Ltd,58000
Chorley Borough Council,http://statistics.data.gov.uk/id/local-authority/30UE,Homelessness,1075,Housing,External Contractor,40198,Miscellaneous Expenses,5034,"Concierge service at Cotswold Supported Housing, Cotswold Road, Chorley, Lancashire. PR7 3HW. ",23/10/2013,91603,"4,333.68",Revenue,Profile Security Ltd,58000
Chorley Borough Council,http://statistics.data.gov.uk/id/local-authority/30UE,Homelessness,1075,Housing,External Contractor,40198,Miscellaneous Expenses,5034,"Concierge service at Cotswold Supported Housing, Cotswold Road, Chorley, Lancashire. PR7 3HW. ",23/10/2013,91604,"4,248.03",Revenue,Profile Security Ltd,58000
Chorley Borough Council,http://statistics.data.gov.uk/id/local-authority/30UE,Planning Policy,1092,Planning,Professional Fees,40063,Services,5027,LDF Programme Officer 17 June - 30 September 2013,23/10/2013,91621,"1,660.00",Revenue,Programme Officer Services Ltd,57093
Chorley Borough Council,http://statistics.data.gov.uk/id/local-authority/30UE,Planning Policy,1092,Planning,Professional Fees,40063,Services,5027,Mileage Burnley Chorley Return ,23/10/2013,91621,22.50,Revenue,Programme Officer Services Ltd,57093
Chorley Borough Council,http://statistics.data.gov.uk/id/local-authority/30UE,Planning Policy,1092,Planning,Professional Fees,40063,Services,5027,Postages,23/10/2013,91621,8.25,Revenue,Programme Officer Services Ltd,57093
Chorley Borough Council,http://statistics.data.gov.uk/id/local-authority/30UE,Corporate Management,1008,Streetscene & Leisure Contracts,Grants To Other Organisations,40127,Grants and Subscriptions,5031,Chorley Council contribution to fencing and toilets facilities for Bonfire & Firework Display at Duxbury Park,25/10/2013,91731,700.00,Revenue,Red Bank Scout Group,16846
Chorley Borough Council,http://statistics.data.gov.uk/id/local-authority/30UE,Service Management & Support,1009,Streetscene & Leisure Contracts,Supplies-Grounds Maintenance,40025,"Equipment, Furniture & Materia",5023,Supply Amenity weed killer as per previous orders,04/10/2013,91252,530.00,Revenue,Rigby Taylor Ltd,16299
Chorley Borough Council,http://statistics.data.gov.uk/id/local-authority/30UE,Democratic Represent and  Mgnt,1007,Health Environment & Neighbourhoods,Other Fees,40212,Miscellaneous Expenses,5034,Delivery of outdoor pursuit activity on Thursday 12th September,09/10/2013,91253,253.33,Revenue,Rock and River Outdoor Pursuits,57631
Chorley Borough Council,http://statistics.data.gov.uk/id/local-authority/30UE,Housing Benefit Administration,1077,"Customer, ICT & Transactional",Postages,40082,Communication and Computing,5028,Documents other than addressed,11/10/2013,91006,975.00,Revenue,Royal Mail Group Plc,17522
Chorley Borough Council,http://statistics.data.gov.uk/id/local-authority/30UE,Local Tax Collection,1010,"Customer, ICT & Transactional",Postages,40082,Communication and Computing,5028,Documents other than addressed,11/10/2013,91006,975.00,Revenue,Royal Mail Group Plc,17522
Chorley Borough Council,http://statistics.data.gov.uk/id/local-authority/30UE,Parking Services,1066,Streetscene & Leisure Contracts,Salting & Gritting,20059,Grounds Maintenance Costs,5013,Supply 1 x 28 tonne load of 6mm rock salt to be delivered to Yarrow Depot Bolton Rd Chorley ,25/10/2013,91734,916.79,Revenue,Salt Union Ltd,18087
Chorley Borough Council,http://statistics.data.gov.uk/id/local-authority/30UE,Corporate Management,1008,Shared Service Arrangement,Treasury Management Service,40065,Services,5027,Treasury Services provided by Sector in accordance with our agreement from 01/04/2013 - 30/09/2013,25/10/2013,91221,"6,750.00",Revenue,Sector Treasury Services Ltd,16428
Chorley Borough Council,http://statistics.data.gov.uk/id/local-authority/30UE,Economic Development,1096,Economic Development,Grants To Other Organisations,40127,Grants and Subscriptions,5031,Starting in business grant - Cap Ex,09/10/2013,91294,750.00,Revenue,Shanti Lounge,61772
Chorley Borough Council,http://statistics.data.gov.uk/id/local-authority/30UE,Service Management & Support,1009,Streetscene & Leisure Contracts,External Contractor,40198,Miscellaneous Expenses,5034,Carryout resurfacing works at Clayton Brook car park as per quotation,11/10/2013,91249,"5,773.90",Revenue,Shiloh Surfacing,61457
Chorley Borough Council,http://statistics.data.gov.uk/id/local-authority/30UE,Unapportionable Central OHeads,1009,"Customer, ICT & Transactional",Consultants` Fees,40077,Services,5027,ICT consultancy work - September (11 working days) To be paid on a daily basis June 13 to November 13 at 24 per hour,11/10/2013,91235,"1,832.29",Revenue,Simon Daniel Booth,57624
Chorley Borough Council,http://statistics.data.gov.uk/id/local-authority/30UE,Service Management & Support,1009,Streetscene & Leisure Contracts,Protective Clothing,40040,"Clothing, Uniforms and Laundry",5025,Supply Workforce boots size 8 x 6 size 9 x 6 size 10 x 6 No F324 ,04/10/2013,91269,412.20,Revenue,Smart Image Workwear,21064
Chorley Borough Council,http://statistics.data.gov.uk/id/local-authority/30UE,Democratic Represent and  Mgnt,1007,Streetscene & Leisure Contracts,Cleaning/Attendants' Services,20041,Cleaning and Domestic Supplies,5012,"Astley Coach House Internal Toilet Cleaning",09/10/2013,91311,"6,961.50",Revenue,Southcott Catering Ltd,21842
Chorley Borough Council,http://statistics.data.gov.uk/id/local-authority/30UE,Service Management & Support,1009,Streetscene & Leisure Contracts,Supplies & Consumables -Street Cleansing,40235,"Equipment, Furniture & Materia",5023,Supply Springbok rake 20 teeth to be delivvered to Bengal St depot,23/10/2013,91591,368.50,Revenue,Spalding (UK) Limited,20264
Chorley Borough Council,http://statistics.data.gov.uk/id/local-authority/30UE,Community Development,1097,Policy & Performance,Grants To Other Organisations,40127,Grants and Subscriptions,5031,Painting at the Credit Union,09/10/2013,91187,892.50,Revenue,Speakman Contractors Ltd,54838
Chorley Borough Council,http://statistics.data.gov.uk/id/local-authority/30UE,Homelessness,1075,Housing,Miscellaneous Expenses,40200,Miscellaneous Expenses,5034,Digging out base to receive 100mm of concrete with re-enforce mesh and shuttering to take new shed. ,18/10/2013,91454,772.20,Revenue,Speakman Contractors Ltd,54838
Chorley Borough Council,http://statistics.data.gov.uk/id/local-authority/30UE,Service Management & Support,1009,Streetscene & Leisure Contracts,Training Course Fees,17010,Indirect Employee Expenses,5002,Carryout chainsaw maintenance and cross cutting training as required for 4 x operatives,23/10/2013,91627,700.00,Revenue,Specialized Training,61305
Chorley Borough Council,http://statistics.data.gov.uk/id/local-authority/30UE,Community Development,1097,Health Environment & Neighbourhoods,External Contractor,40198,Miscellaneous Expenses,5034,"Payment divided into 3 equal parts for invoicing Sept 2013 Dec 2013 and March 2014",02/10/2013,91183,"13,775.00",Revenue,Spice Innovations Ltd,61318
Chorley Borough Council,http://statistics.data.gov.uk/id/local-authority/30UE,Capital,Capital,Housing,Grants,3002,Capital Expenditure,Capital,Capital Works - Disabled Facility Grant,11/10/2013,91286,"1,160.00",Capital,Stringfellow Bldg Cntrctrs Ltd,17893
Chorley Borough Council,http://statistics.data.gov.uk/id/local-authority/30UE,Service Management & Support,1009,Streetscene & Leisure Contracts,Grounds Maintenance Contractor,20043,Grounds Maintenance Costs,5013,Stumpgrinding various areas in Astley Park,25/10/2013,91582,670.00,Revenue,Stumpbusters North Lancs,22600
Chorley Borough Council,http://statistics.data.gov.uk/id/local-authority/30UE,Capital,Capital,Streetscene & Leisure Contracts,Other Contractor,3012,Capital Expenditure,Capital,Location and drilling of a mine shaft by rotary open hole boreholes. Preparation of Factual Report on works carried out.,02/10/2013,91178,"14,114.50",Capital,Sub Surface North West Limited,55367
Chorley Borough Council,http://statistics.data.gov.uk/id/local-authority/30UE,Control Accounts,Control,Shared Service Arrangement,Manual Control Account,1,Balance Sheet,Balance,refund credit,30/10/2013,CRREF27,"1,435.40",Revenue,Sweet & Maxwell Limited,17932
Chorley Borough Council,http://statistics.data.gov.uk/id/local-authority/30UE,Unapportionable Central OHeads,1009,Policy & Performance,Exhibitions & Special Events,40158,Miscellaneous Expenses,5034,PA equipment for Chorley Live,25/10/2013,91695,"1,450.00",Revenue,The Creative Network,61874
Chorley Borough Council,http://statistics.data.gov.uk/id/local-authority/30UE,Unapportionable Central OHeads,1009,Policy & Performance,Exhibitions & Special Events,40158,Miscellaneous Expenses,5034,Strolling gardeners walkabout act for picnic in the park,02/10/2013,91050,695.00,Revenue,The Fairly Famous Family Limited,20457
Chorley Borough Council,http://statistics.data.gov.uk/id/local-authority/30UE,Unapportionable Central OHeads,1009,Governance,Professional Fees,14011,Direct Employee Expenses,5001,Admission fee (100.00) and practice certificate fee (440.00) ,09/10/2013,91202,"1,080.00",Revenue,The Law Society,57091
Chorley Borough Council,http://statistics.data.gov.uk/id/local-authority/30UE,Unapportionable Central OHeads,1009,Governance,Professional Fees,14011,Direct Employee Expenses,5001,Practising Certificate 2013/2014 (384.00) and Compensation Fund payment (56.00) 2013/2014 ,25/10/2013,91699,"1,320.00",Revenue,The Law Society,57091
Chorley Borough Council,http://statistics.data.gov.uk/id/local-authority/30UE,Economic Development,1096,Economic Development,Grants To Other Organisations,40127,Grants and Subscriptions,5031,Starting in business grant,30/10/2013,91709,712.00,Revenue,NAME REDACTED,62176
Chorley Borough Council,http://statistics.data.gov.uk/id/local-authority/30UE,Unapportionable Central OHeads,1009,Chief Executives Office,Postages,40082,Communication and Computing,5028,Mail Collection for all Departments,23/10/2013,91233,981.00,Revenue,TNT Post North Ltd,21187
Chorley Borough Council,http://statistics.data.gov.uk/id/local-authority/30UE,Unapportionable Central OHeads,1009,Chief Executives Office,Postages,40082,Communication and Computing,5028,Mail Collection for all Departments,23/10/2013,91277,"1,229.62",Revenue,TNT Post North Ltd,21187
Chorley Borough Council,http://statistics.data.gov.uk/id/local-authority/30UE,Economic Development,1096,Economic Development,Grants To Other Organisations,40127,Grants and Subscriptions,5031,Starting in Business Grant - Cap Ex,09/10/2013,91295,750.00,Revenue,NAME REDACTED,61773
Chorley Borough Council,http://statistics.data.gov.uk/id/local-authority/30UE,Service Management & Support,1009,Streetscene & Leisure Contracts,Grounds Maintenance Contractor,20043,Grounds Maintenance Costs,5013,"Fell & remove large Beech tree, Astley Park Stump grinding various sites",16/10/2013,91502,"2,040.00",Revenue,Treescape North West Ltd,17688
Chorley Borough Council,http://statistics.data.gov.uk/id/local-authority/30UE,Service Management & Support,1009,Streetscene & Leisure Contracts,Grounds Maintenance Contractor,20043,Grounds Maintenance Costs,5013,Various areas in Astley Village for overhanging branches,16/10/2013,91503,"4,290.00",Revenue,Treescape North West Ltd,17688
Chorley Borough Council,http://statistics.data.gov.uk/id/local-authority/30UE,Service Management & Support,1009,Streetscene & Leisure Contracts,Petrol,30005,Direct Transport Costs,5016,Petrol,16/10/2013,91465,294.89,Revenue,Uk Fuels Ltd,57996
Chorley Borough Council,http://statistics.data.gov.uk/id/local-authority/30UE,Service Management & Support,1009,Streetscene & Leisure Contracts,Petrol,30005,Direct Transport Costs,5016,Petrol,16/10/2013,91465,145.96,Revenue,Uk Fuels Ltd,57996
Chorley Borough Council,http://statistics.data.gov.uk/id/local-authority/30UE,Service Management & Support,1009,Streetscene & Leisure Contracts,Petrol,30005,Direct Transport Costs,5016,Petrol,16/10/2013,91465,71.33,Revenue,Uk Fuels Ltd,57996
Chorley Borough Council,http://statistics.data.gov.uk/id/local-authority/30UE,Corporate Management,1008,Streetscene & Leisure Contracts,Petrol,30005,Direct Transport Costs,5016,Petrol,16/10/2013,91465,42.85,Revenue,Uk Fuels Ltd,57996
Chorley Borough Council,http://statistics.data.gov.uk/id/local-authority/30UE,Service Management & Support,1009,Streetscene & Leisure Contracts,Petrol,30005,Direct Transport Costs,5016,Petrol,16/10/2013,91465,29.29,Revenue,Uk Fuels Ltd,57996
Chorley Borough Council,http://statistics.data.gov.uk/id/local-authority/30UE,Service Management & Support,1009,Streetscene & Leisure Contracts,Petrol,30005,Direct Transport Costs,5016,Petrol,16/10/2013,91465,5.13,Revenue,Uk Fuels Ltd,57996
Chorley Borough Council,http://statistics.data.gov.uk/id/local-authority/30UE,Service Management & Support,1009,Streetscene & Leisure Contracts,Petrol,30005,Direct Transport Costs,5016,Petrol,16/10/2013,91465,19.91,Revenue,Uk Fuels Ltd,57996
Chorley Borough Council,http://statistics.data.gov.uk/id/local-authority/30UE,Democratic Represent and  Mgnt,1007,Streetscene & Leisure Contracts,Use Of Transport - Mayoral Car,30015,Transport Recharges,5017,Petrol,16/10/2013,91465,54.58,Revenue,Uk Fuels Ltd,57996
Chorley Borough Council,http://statistics.data.gov.uk/id/local-authority/30UE,Unapportionable Central OHeads,1009,HR & Org. Development,Miscellaneous Expenses,40200,Miscellaneous Expenses,5034,Employees,23/10/2013,91601,"1,439.25",Revenue,UK Healthcare (BDHSC),17241
Chorley Borough Council,http://statistics.data.gov.uk/id/local-authority/30UE,Control Accounts,Control,HR & Org. Development,General Balances,100,Balance Sheet,Balance,Top ups,23/10/2013,91601,384.13,Revenue,UK Healthcare (BDHSC),17241
Chorley Borough Council,http://statistics.data.gov.uk/id/local-authority/30UE,Control Accounts,Control,Shared Service Arrangement,General Balances,100,Balance Sheet,Balance,October deduction,16/10/2013,91557,"1,138.00",Revenue,Unify Credit Union Ltd,55509
Chorley Borough Council,http://statistics.data.gov.uk/id/local-authority/30UE,Service Management & Support,1009,Streetscene & Leisure Contracts,Water - Metered Supplies,20022,Water Services,5009,"Standpipe 10S009035, 08A110460, 08A099817",09/10/2013,91362,457.47,Revenue,United Utilites (Standpipe Invoices Only),20701
Chorley Borough Council,http://statistics.data.gov.uk/id/local-authority/30UE,Democratic Represent and  Mgnt,1007,Streetscene & Leisure Contracts,Water - Metered Supplies,20022,Water Services,5009,Astley Park Village centre,18/10/2013,91549,458.05,Revenue,United Utilities Water Plc,17926
Chorley Borough Council,http://statistics.data.gov.uk/id/local-authority/30UE,Unapportionable Central OHeads,1009,Governance,Water - Metered Supplies,20022,Water Services,5009,Council Offices,30/10/2013,91749,894.77,Revenue,United Utilities Water Plc,17926
Chorley Borough Council,http://statistics.data.gov.uk/id/local-authority/30UE,Corporate Management,1008,Streetscene & Leisure Contracts,Water - Metered Supplies,20022,Water Services,5009,"Toilets, Market Place",30/10/2013,91750,"1,977.71",Revenue,United Utilities Water Plc,17926
Chorley Borough Council,http://statistics.data.gov.uk/id/local-authority/30UE,Corporate Management,1008,Streetscene & Leisure Contracts,Unitary Payment(S),50009,Private Contractors,5042,Provision of refuse and recycling collection and ancillary services for 2013/14,30/10/2013,91787,"263,668.47",Revenue,Veolia ES (UK) Ltd,20748
Chorley Borough Council,http://statistics.data.gov.uk/id/local-authority/30UE,Unapportionable Central OHeads,1009,"Customer, ICT & Transactional",Telephones - Rentals,40083,Communication and Computing,5028,Recurring Charges,11/10/2013,88206,644.06,Revenue,Virgin Media Payments Ltd,17632
Chorley Borough Council,http://statistics.data.gov.uk/id/local-authority/30UE,Unapportionable Central OHeads,1009,"Customer, ICT & Transactional",Telephones - Calls,40084,Communication and Computing,5028,Useage,11/10/2013,88206,439.56,Revenue,Virgin Media Payments Ltd,17632
Chorley Borough Council,http://statistics.data.gov.uk/id/local-authority/30UE,Unapportionable Central OHeads,1009,"Customer, ICT & Transactional",Telephones - Other,40085,Communication and Computing,5028,Charges,11/10/2013,88813,644.06,Revenue,Virgin Media Payments Ltd,17632
Chorley Borough Council,http://statistics.data.gov.uk/id/local-authority/30UE,Unapportionable Central OHeads,1009,"Customer, ICT & Transactional",Telephones - Calls,40084,Communication and Computing,5028,Charges,11/10/2013,88813,456.18,Revenue,Virgin Media Payments Ltd,17632
Chorley Borough Council,http://statistics.data.gov.uk/id/local-authority/30UE,Unapportionable Central OHeads,1009,"Customer, ICT & Transactional",Telephones - Other,40085,Communication and Computing,5028,Charges,11/10/2013,89347,644.06,Revenue,Virgin Media Payments Ltd,17632
Chorley Borough Council,http://statistics.data.gov.uk/id/local-authority/30UE,Unapportionable Central OHeads,1009,"Customer, ICT & Transactional",Telephones - Calls,40084,Communication and Computing,5028,Charges,11/10/2013,89347,378.47,Revenue,Virgin Media Payments Ltd,17632
Chorley Borough Council,http://statistics.data.gov.uk/id/local-authority/30UE,Unapportionable Central OHeads,1009,"Customer, ICT & Transactional",Telephones - Other,40085,Communication and Computing,5028,Charges,11/10/2013,89922,644.06,Revenue,Virgin Media Payments Ltd,17632
Chorley Borough Council,http://statistics.data.gov.uk/id/local-authority/30UE,Unapportionable Central OHeads,1009,"Customer, ICT & Transactional",Telephones - Calls,40084,Communication and Computing,5028,Charges,11/10/2013,89922,449.42,Revenue,Virgin Media Payments Ltd,17632
Chorley Borough Council,http://statistics.data.gov.uk/id/local-authority/30UE,Unapportionable Central OHeads,1009,"Customer, ICT & Transactional",Telephones - Other,40085,Communication and Computing,5028,Telephony Charges,11/10/2013,90512,644.06,Revenue,Virgin Media Payments Ltd,17632
Chorley Borough Council,http://statistics.data.gov.uk/id/local-authority/30UE,Unapportionable Central OHeads,1009,"Customer, ICT & Transactional",Telephones - Calls,40084,Communication and Computing,5028,Telephony Charges,11/10/2013,90512,485.71,Revenue,Virgin Media Payments Ltd,17632
Chorley Borough Council,http://statistics.data.gov.uk/id/local-authority/30UE,Unapportionable Central OHeads,1009,"Customer, ICT & Transactional",Telephones - Other,40085,Communication and Computing,5028,Telephony Charges,18/10/2013,91547,644.06,Revenue,Virgin Media Payments Ltd,17632
Chorley Borough Council,http://statistics.data.gov.uk/id/local-authority/30UE,Unapportionable Central OHeads,1009,"Customer, ICT & Transactional",Telephones - Calls,40084,Communication and Computing,5028,Useage,18/10/2013,91547,449.01,Revenue,Virgin Media Payments Ltd,17632
Chorley Borough Council,http://statistics.data.gov.uk/id/local-authority/30UE,Unapportionable Central OHeads,1009,"Customer, ICT & Transactional",Computer Equipment - Security,40106,Communication and Computing,5028,Gsi Convergence Framework,11/10/2013,91329,"2,636.45",Revenue,Vodafone Ltd,60180
Chorley Borough Council,http://statistics.data.gov.uk/id/local-authority/30UE,Corporate Management,1008,Governance,Other Fees,40212,Miscellaneous Expenses,5034,Settlement cost for employers liability claim Winstanley V Rover Group EL11-003 Withnelll UDC Employee ,09/10/2013,91203,"1,692.00",Revenue,Wake Smith LLP,61465
Chorley Borough Council,http://statistics.data.gov.uk/id/local-authority/30UE,Economic Development,1096,Economic Development,Grants To Other Organisations,40127,Grants and Subscriptions,5031,Starting in business grant - Capital Expenditure,09/10/2013,91292,750.00,Revenue,We Print On,61776
Chorley Borough Council,http://statistics.data.gov.uk/id/local-authority/30UE,Democratic Represent and  Mgnt,1007,Streetscene & Leisure Contracts,Consultants` Fees,40077,Services,5027,Curatorial Consultancy fees for September 2013. 699.96 (including VAT),16/10/2013,91486,583.30,Revenue,Whittle and Draper Fine Art,52271
Chorley Borough Council,http://statistics.data.gov.uk/id/local-authority/30UE,Unapportionable Central OHeads,1009,Governance,Consultants` Fees,40077,Services,5027,Bat and Bird survey ,09/10/2013,91307,"1,580.00",Revenue,Wildlife Survey,61768
Chorley Borough Council,http://statistics.data.gov.uk/id/local-authority/30UE,Unapportionable Central OHeads,1009,Policy & Performance,Exhibitions & Special Events,40158,Miscellaneous Expenses,5034,Toilet hire for summer events.,09/10/2013,91263,325.00,Revenue,William G Search Limited,20793
Chorley Borough Council,http://statistics.data.gov.uk/id/local-authority/30UE,Capital,Capital,Streetscene & Leisure Contracts,Other Expenses,3030,Capital Expenditure,Capital,Work at Birkacre Reservoir,02/10/2013,91175,"32,062.50",Capital,William Pye Ltd,60564
Chorley Borough Council,http://statistics.data.gov.uk/id/local-authority/30UE,Corporate Management,1008,Streetscene & Leisure Contracts,Provn Of Street Furniture,20057,Grounds Maintenance Costs,5013,Supply litter bins as per Chorley specification discussed,30/10/2013,91763,"6,839.64",Revenue,Wybone Ltd,18097
Chorley Borough Council,http://statistics.data.gov.uk/id/local-authority/30UE,Corporate Management,1008,Streetscene & Leisure Contracts,Provn Of Street Furniture,20057,Grounds Maintenance Costs,5013,Supply litter bins as per Chorley specification discussed,30/10/2013,91764,"8,359.56",Revenue,Wybone Ltd,18097
Chorley Borough Council,http://statistics.data.gov.uk/id/local-authority/30UE,Capital,Capital,Economic Development,Other Capital Grants/Loans,3000,Capital Expenditure,Capital,Climate change grant,25/10/2013,91675,"2,052.00",Capital,X Fit Gym (Chorley) Limited,62056
Chorley Borough Council,http://statistics.data.gov.uk/id/local-authority/30UE,Economic Development,1096,Economic Development,Grants To Other Organisations,40127,Grants and Subscriptions,5031,Shop floor improvement grant,23/10/2013,91567,"1,668.50",Revenue,Zen Hair,60836
Chorley Borough Council,http://statistics.data.gov.uk/id/local-authority/30UE,Corporate Management,1008,Health Environment & Neighbourhoods,Computer Software-Maintenance,40107,Communication and Computing,5028,Annual support and maintenance of the Zipporah Children�s Activity Booking system August 2013 to July 2014,25/10/2013,91641,"3,009.82",Revenue,Zipporah LTD,21786
